Workbook

Sheet Hagoort Method
E1: Injection or Production? | F1: INJ | J1: =1-ΔTfD+(ΔTfD-ΔTAD)*((1-EXP(-Nhl))/Nhl) -> 1.069422766
D2: Input | I2: Dimensionless Variables | Q2: Results
D3: Production Rate | F3: =F4*(CONVERT(1,"ft","m"))^3 -> 0.5663369318 | G3: 106 m3/day (std) | I3: TD | J3: =TfbD-ΔTfD*yD+(ΔTfD-(ΔTfD-Nhl*(1-TfbD))*EXP(-Nhl*yD))/Nhl-ΔTAD*(1-EXP(-Nhl*yD))/Nhl -> 0.9879880982 | K3: dimensionless temperature | Q3: Tout | R3: =CONVERT(R4,"F","K") -> 362.1376254 | S3: (K) | U3: The macro in "Iterate" solves for the whole well. It does not discretize the well into parts for greater accuracy. To discretize the well, use the "Calculate" worksheet and macros.
F4: 20 | G4: MMscf/d | I4: TfbD | J4: =Tfin/Tin -> 0.7726135795 | K4: dimensionless formation temperature @ bottomhole | R4: 192.1777256 | S4: °F
D5: Mass flow rate | E5: w | F5: =F3*1000000*ρstd/CONVERT(1,"day","sec") -> 4.77613333 | G5: kg/s | I5: ΔTfD | J5: =(Tfin-Tfout)/Tin -> -0.2273864205 | K5: dimensionless formation temperature difference - top/bottom | Q5: Pout | R5: =CONVERT(R6,"psi","Pa")/1000000 -> 27.58109902 | S5: (MPa)
D6: Inlet Pressure | E6: Pin | F6: =CONVERT(F7,"psi","Pa")/1000000 -> 24.02572523 | G6: (MPa) | I6: yD | J6: 1 | K6: dimensionless depth (in = 0, out = 1) | R6: 4000.300205 | S6: psi
D7: (PROD=BHP, INJ=Compressour Outlet) | F7: 3484.636835 | G7: psi | I7: ΔTD | J7: =(Tin-Texit)/Tin -> 0.01201190181 | K7: Dimensionless temperature drop from top to bottom | Q7: zavg | R7: =AVERAGE(zout,zin) -> 0.9562285807 | S7: -
D8: Inlet temperature | F8: 200 | G8: °F | I8: PD | J8: =((1-ΔTD*yD)^(2*Ngp/ΔTD)+Nfp/2*(1-ΔTD*yD)^2/(Ngp-ΔTD)*((1-ΔTD*yD)^(2*(Ngp/ΔTD-1))-1))^0.5 -> 1.145306286 | K8: Dimensionless pressure | Q8: Cpavg | R8: =AVERAGE(Cpout, Cpin) -> 53.07771687 | S8: (J/mol K)
D9: Inlet temperature | E9: Tin | F9: =CONVERT(F8,"F","K") -> 366.4833333 | G9: (K) | Q9: Ψavg | R9: =AVERAGE(Ψin, Ψout) -> 0.2195412526 | S9: -
Q10: Ωavg | R10: =AVERAGE(Ωout,Ωin) -> 14.20838761 | S10: (K/MPa)2
D11: Tubing length [Prod(+), Inj(-)] | E11: L | F11: =CONVERT(F12,"ft","m") -> 2590.8 | G11: m | Q11: μavg | R11: =AVERAGE(μout,μin) -> 2.073523553e-05 | S11: (Pa s)
D12: Tubing length | E12: L | F12: 8500 | G12: ft | I12: Gas Definition | Q12: favg | R12: =AVERAGE(fout,fin) -> 0.003134108229 | S12: -
E13: dh | F13: =CONVERT(F14,"in","m") -> 0.1005332 | G13: m | I13: Gas: | J13: Natural Gas | L13: Methane | Q13: Ngp | R13: =(M/1000)*g*L/(zavg*R_*Tin)*IF(MODE="INJ", -1,IF(MODE="PROD", 1,0)) -> -0.1497390871 | S13: - | T13: Ratio of gravity to pressure forces
D14: Tubing ID | F14: 3.958 | G14: in | I14: M | J14: =[1]!MolarMass(J13) -> 17.18515365 | K14: g/mol | L14: Molecular Mass | Q14: Nfp | R14: =0.000000001*4*zavg*favg*w^2*R_*Tin*L/(Pin^2*A^2*dh*M) -> 0.03435620847 | S14: - | T14: Ratio of friction to pressure forces
D15: Formation Temperature - top/WHT | F15: 50 | G15: (F) | I15: ρstd | J15: =[1]!DENSITY($J$13, "TP","C",Tstd, Pstd/10) -> 0.7286438453 | K15: kg/m3 | L15: Density @ standard conditions | Q15: ΔTA | R15: =ΔTAD*Tin -> -11.66330755 | S15: (K)
E16: Tft | F16: =CONVERT(F15,"F","K") -> 283.15 | G16: (K) | Q16: ΔTAD | R16: =Ψavg*Ngp+Ωavg*(Pin^2/(2*Tin^2))*Nfp -> -0.03182493307 | S16: -
D17: Formation Temperature - bottom/BHT | F17: 200 | G17: (F)
E18: Tfb | F18: =CONVERT(F17,"F","K") -> 366.4833333 | G18: (K) | Q18: Nhl | R18: =2*PI()*(M/1000)*U*L*rcF/(w*Cpavg) -> 0.4433747587 | S18: - | T18: heat lost to formation vs. heat in gas
D19: Formation Pressure - bottom | E19: Pb | F19: 4000 | G19: psi | Q19: Texit | R19: =TD*Tin -> 362.0811715 | S19: (K) | T19: Multi-Segment Answer
D20: Wall roughness | E20: δ | F20: =CONVERT(0.0006,"in","m") -> 1.524e-05 | G20: m | I20: methane | J20: =[1]!MassFraction(J13,1) -> 0.8879986151 | K20: mass fraction | R20: =CONVERT(Texit,"K","F") -> 192.0761087 | S20: °F | U20: 192.1777256 | V20: °F
D21: Heat conductivity formation | E21: λf | F21: 8.72 | G21: kJ/(m h K) | P21: =ΔTwh*5/9 -> -4.402161816 | Q21: ΔTtotal | R21: =(Texit-Tin)*9/5 -> -7.92389127 | S21: °F | U21: =U20-F8 -> -7.822274356 | V21: °F
D22: Thermal diffusivity formation | E22: κ | F22: 0.0037 | G22: m2/h | I22: U(copy) | J22: =(1/Uwb+rcF/((λf*1000/3600)*quDo))^-1 -> 2.259751627 | Q22: Pexit | R22: =CONVERT(PD*Pin*1000000,"Pa","psi") -> 3990.976471 | S22: psi | U22: 4000.300205 | V22: psi
D23: Thermal skin factor | E23: sth | F23: 2 | I23: Heat Transfer | Q23: ΔPtotal | R23: =Pexit-CONVERT(1000000*Pin,"Pa","psi") -> 506.3396354 | S23: psi | U23: =U22-F7 -> 515.66337 | V23: psi
D24: Radius interface cement-formation | E24: rcF | F24: =CONVERT(F25,"in","m") -> 0.1778 | G24: m | I24: U | J24: =(1/Uwb+rcF/((λf*1000/3600)*quDo))^-1 -> 2.259751627 | K24: J/(m2 s K) | L24: Overall Wellbore Heat Transfer Coefficient | Q24: tol | R24: =ABS(R6-Pexit )+ABS(R4-R20) -> 9.425351455
F25: 7 | G25: in. | I25: Uwb | J25: =λf/(sth*rcF)*1000/3600 -> 6.811648544 | K25: J/(m2 s K) | L25: Near-wellbore Heat Transfer Coefficient | Q25: Twh_multi | R25: =U20 -> 192.1777256 | S25: °F
D26: Production time | E26: t | F26: 400 | G26: days | I26: tDFo | J26: =κ*t/(rcF^2)*24 -> 1123.594084 | K26: - | L26: Dimensionless time for heat transfer | Q26: Pwh_multi | R26: =U22 -> 4000.300205 | S26: psi
D27: Standard pressure | E27: Pstd | F27: 1.0156 | G27: bar | I27: quDo | J27: =1/(-0.0012*(LN(tDFo))^3+0.0249*(LN(tDFo))^2+0.3083*LN(tDFo)+1.0504) -> 0.2482208702 | K27: - | L27: Dimensionless unit heat-loss for sth = 0 | Q27: TD | R27: =TD -> 0.9879880982
D28: Standard temperature | E28: Tstd | F28: =CONVERT(288.706,"K","C") -> 15.556 | G28: °C | Q28: PD | R28: =PD -> 1.145306286
I29: U | J29: 0 | K29: http://www.majus.co.uk/products/vacuum-insulated-tubing-i-tubing-vit | Q29: Analysis
D30: Intermediate Values | Q30: ΔThlD | R30: =ΔTfD*(1+(1-EXP(-Nhl))/Nhl) -> -0.4110564794 | S30: Dimensionless Temp drop due to Heat Losses
D31: Formation Temperature at Inflow | E31: Tf,in | F31: =IF(F54="Off", IF(MODE="INJ",Tft,IF(MODE="PROD", Tfb,0)),F52) -> 283.15 | G31: (K) | H31: =IF(MODE="INJ","Surface Temp",IF(MODE="PROD","Formation Temp","WTF did you do?")) -> Surface Temp | R31: =R30*Tin -> -150.6453487 | S31: (K) | T31: Temp drop due to Heat Losses
D32: Formation Temperature at Outflow | E32: Tf,out | F32: =IF(F54="Off", IF(MODE="INJ", Tfb,IF(MODE="PROD", Tft,0)), F53) -> 366.4833333 | G32: (K) | H32: =IF(MODE="PROD","Surface Temp",IF(MODE="INJ","Formation Temp","WTF did you do?")) -> Formation Temp | R32: =R31*9/5 -> -271.1616277 | S32: (F)
D33: Heat Capacity,out of tubing | E33: Cpout | F33: =[1]!IsobaricHeatCapacity($J$13, "TP","Molar SI", Tout, Pout) -> 53.49305485 | G33: J/(mol K)
D34: Heat Capacity,into tubing | E34: Cpin | F34: =[1]!IsobaricHeatCapacity($J$13, "TP","Molar SI", Tin, Pin) -> 52.6623789 | G34: J/(mol K)
D35: Change in temperature due to gravity, out | E35: Ψout | F35: =ηout*Pout/Tout + zout*R_/Cpout -> 0.2167913034 | G35: -
D36: Change in temperature due to gravity, in | E36: Ψin | F36: =ηin*Pin/Tin + zin*R_/Cpin -> 0.2222912017 | G36: -
D37: Change in temperature due to friction, out | E37: Ωout | F37: =ηout*Tout/Pout -> 11.54706993 | G37: (K/Mpa)2
D38: Change in temperature due to friction, in | E38: Ωin | F38: =ηin*Tin/Pin -> 16.8697053 | G38: (K/Mpa)2 | H38: =Ωin -> 16.8697053
D39: Joule–Thomson coefficient, out | E39: ηout | F39: =[1]!JouleThomson($J$13,"TP","SI", Tout, Pout) -> 0.8794470851 | G39: K/MPa
D40: Joule–Thomson coefficient, in | E40: ηin | F40: =[1]!JouleThomson($J$13,"TP","SI", Tin, Pin) -> 1.105935434 | G40: K/MPa
D41: Gas Constant | E41: R | F41: 8.315 | G41: J/(mol K)
D42: Gas Compressibility Factor, out | E42: zout | F42: =[1]!CompressibilityFactor($J$13,"TP","SI", Tout, Pout) -> 0.9637815682 | G42: -
D43: Gas Compressibility Factor, in | E43: zin | F43: =[1]!CompressibilityFactor($J$13,"TP","SI", Tin, Pin) -> 0.9486755933 | G43: -
D44: acceleration constant | E44: g | F44: 9.8 | G44: m/s2
D45: Tubing Cross-Section Area | E45: A | F45: =PI()*(dh/2)^2 -> 0.007937959785 | G45: m2
D46: Reynold's Number, out | E46: Reout | F46: =w*dh/(A*μout) -> 2819288.519 | G46: -
D47: Reynold's Number, in | E47: Rein | F47: =w*dh/(A*μin) -> 3022183.983 | G47: -
D48: Gas viscosity, out | E48: μout | F48: =[1]!viscosity($J$13, "TP","SI", Tout, Pout)*0.000001 -> 2.145544525e-05 | G48: Pa*s
D49: Gas viscosity, in | E49: μin | F49: =[1]!viscosity($J$13, "TP","SI", Tin, Pin)*0.000001 -> 2.001502582e-05 | G49: Pa*s
D50: friction factor, out | E50: fout | F50: 0.003133823472 | G50: - | H50: =1/SQRT(fout) -> 17.86334292 | I50: =4*LOG(dh/δ)+2.276+4*LOG(1+4.675*dh/(δ*Reout*SQRT(fout))) -> 17.86335431 | J50: =H50-I50 -> -1.138454154e-05
D51: friction factor, in | E51: fin | F51: 0.003134392985 | G51: - | H51: =1/SQRT(fin) -> 17.86171998 | I51: =4*LOG(dh/δ)+2.276+4*LOG(1+4.675*dh/(δ*Rein*SQRT(fin))) -> 17.84416073 | J51: =H51-I51 -> 0.01755925461
E52: Tf,in,Temp | F52: 366.4833333 | G52: (K)
E53: Tf,out,Temp | F53: 370.65 | G53: (K)
E54: Discretize? | F54: Off

Sheet Calculate
F1: 200 | H1: 1.61 | I1: 4
F2: 300 | H2: 2.441 | I2: 4
F3: 400 | H3: 3.958 | I3: 7
B4: MMscf/d | C4: kg/s | D4: psi | E4: psi | F4: °F | G4: °F | H4: in | I4: in | K4: (K) | L4: °F | M4: (MPa) | N4: psi | O4: - | P4: (J/mol K) | Q4: - | R4: 14.87856257 | S4: (Pa s) | T4: - | U4: - | V4: - | W4: (K) | X4: - | Z4: - | AA4: (K) | AB4: °F | AC4: °F | AD4: psi | AE4: psi | AF4: - | AG4: °F | AH4: psi | AI4: - | AJ4: -
A5: Type | B5: flow | C5: mass_flow | D5: Pb | E5: Pin | F5: Tb | G5: Tin | H5: dh | I5: rcF | J5: % Insulated | K5: Tout | L5: T_out | M5: Pout | N5: P_out | O5: zavg | P5: Cpavg | Q5: Ψavg | R5: Ωavg | S5: μavg | T5: favg | U5: Ngp | V5: Nfp | W5: ΔTA | X5: ΔTAD | Y5: Check | Z5: Nhl | AA5: Twh | AB5: T_wh | AC5: ΔTwh | AD5: Pwh | AE5: ΔPwh | AF5: tol | AG5: Twh_multi | AH5: Pwh_multi | AI5: TD | AJ5: PD
A6: PROD | B6: 1 | C6: 0.2388066665 | D6: 4000 | E6: =D6 -> 4000 | F6: 200 | G6: =F6 -> 200 | H6: 3.958 | I6: 7 | J6: 0 | K6: 291.9696296 | L6: 65.8753332 | M6: 23.108586 | N6: 3351.617035 | O6: 0.8901177637 | P6: 56.90297765 | Q6: 0.2092210155 | R6: 12.99060753 | S6: 2.203665197e-05 | T6: 0.002358576981 | U6: 0.1608605069 | V6: 4.566275553e-05 | W6: 12.33475822 | X6: 0.03365707823 | Z6: 8.27138434 | AA6: 291.7314436 | AB6: 65.44659856 | AC6: -134.5534014 | AD6: 3341.316325 | AE6: -658.6836745 | AF6: 10.7294441 | AG6: 65.87533361 | AH6: 3351.617035 | AI6: 0.7960292246 | AJ6: 0.8353290814
A7: PROD | B7: 2 | C7: 0.477613333 | D7: 4000 | E7: 4000 | F7: 200 | G7: 200 | H7: 3.958 | I7: 7 | J7: 0 | K7: 300.0032203 | L7: 80.33579652 | M7: 23.22442473 | N7: 3368.418023 | O7: 0.8995010418 | P7: 56.30406226 | Q7: 0.2122420569 | R7: 13.41300407 | S7: 2.172027387e-05 | T7: 0.00261070809 | U7: 0.1591824668 | V7: 0.0002043076219 | W7: 12.38456161 | X7: 0.0337929736 | Z7: 4.179684194 | AA7: 299.8649036 | AB7: 80.08682656 | AC7: -119.9131734 | AD7: 3355.164101 | AE7: -644.8358995 | AF7: 13.50289252 | AG7: 80.33579695 | AH7: 3368.418023 | AI7: 0.8182224848 | AJ7: 0.8387910251
A8: PROD | B8: 3 | C8: 0.7164199996 | D8: 4000 | E8: 4000 | F8: 200 | G8: 200 | H8: 3.958 | I8: 7 | J8: 0 | K8: 306.8868869 | L8: 92.72639645 | M8: 23.30215594 | N8: 3379.691982 | O8: 0.9071403457 | P8: 55.8061701 | Q8: 0.2143878104 | R8: 13.72428075 | S8: 2.149029368e-05 | T8: 0.002749034285 | U8: 0.157841943 | V8: 0.0004881594943 | W8: 12.40852416 | X8: 0.03385835869 | Z8: 2.811316367 | AA8: 306.861454 | AB8: 92.68061725 | AC8: -107.3193827 | AD8: 3366.117325 | AE8: -633.882675 | AF8: 13.62043571 | AG8: 92.72639677 | AH8: 3379.691981 | AI8: 0.8373135314 | AJ8: 0.8415293313
A9: PROD | B9: 4 | C9: 0.9552266661 | D9: 4000 | E9: 4000 | F9: 200 | G9: 200 | H9: 3.958 | I9: 7 | J9: 0 | K9: 312.51734 | L9: 102.861212 | M9: 23.35402162 | N9: 3387.214463 | O9: 0.9131057699 | P9: 55.41687222 | Q9: 0.2158521482 | R9: 13.94310509 | S9: 2.132751099e-05 | T9: 0.002837671589 | U9: 0.1568107435 | V9: 0.0009017118843 | W9: 12.41775107 | X9: 0.03388353559 | Z9: 2.123299184 | AA9: 312.5530661 | AB9: 102.9255189 | AC9: -97.07448107 | AD9: 3374.270386 | AE9: -625.7296143 | AF9: 13.00838428 | AG9: 102.8612123 | AH9: 3387.214463 | AI9: 0.8528438749 | AJ9: 0.8435675964
A10: PROD | B10: 5 | C10: 1.194033333 | D10: 4000 | E10: 4000 | F10: 200 | G10: 200 | H10: 3.958 | I10: 7 | J10: 0 | K10: 317.0826256 | L10: 111.078726 | M10: 23.38860378 | N10: 3392.230181 | O10: 0.9177494899 | P10: 55.11616921 | Q10: 0.2168592959 | R10: 14.09821789 | S10: 2.124701992e-05 | T10: 0.002898635103 | U10: 0.156017297 | V10: 0.001446512862 | W10: 12.4206864 | X10: 0.03389154505 | Z10: 1.707906791 | AA10: 317.1448879 | AB10: 111.1907982 | AC10: -88.80920176 | AD10: 3380.184057 | AE10: -619.8159433 | AF10: 12.1581963 | AG10: 111.0787262 | AH10: 3392.230181 | AI10: 0.86537329 | AJ10: 0.8450460142
A11: PROD | B11: 6 | C11: 1.432839999 | D11: 4000 | E11: 4000 | F11: 200 | G11: 200 | H11: 3.958 | I11: 7 | J11: 0 | K11: 320.8097739 | L11: 117.787593 | M11: 23.41115482 | N11: 3395.500932 | O11: 0.921408107 | P11: 54.88174657 | Q11: 0.2175702034 | R11: 14.21178776 | S11: 2.116021933e-05 | T11: 0.002944247219 | U11: 0.1553978021 | V11: 0.002124190172 | W11: 12.42210315 | X11: 0.03389541085 | Z11: 1.429334972 | AA11: 320.8810092 | AB11: 117.9158166 | AC11: -82.08418337 | AD11: 3384.374736 | AE11: -615.6252635 | AF11: 11.25441948 | AG11: 117.7875931 | AH11: 3395.500932 | AI11: 0.8755678091 | AJ11: 0.8460936841
A12: PROD | B12: 7 | C12: 1.671646666 | D12: 4000 | E12: 4000 | F12: 200 | G12: 200 | H12: 3.958 | I12: 7 | J12: 0 | K12: 323.8882842 | L12: 123.3289115 | M12: 23.42488613 | N12: 3397.492491 | O12: 0.9243367251 | P12: 54.69600369 | Q12: 0.2180874099 | R12: 14.29840322 | S12: 2.109369121e-05 | T12: 0.002979258622 | U12: 0.1549054482 | V12: 0.00293493904 | W12: 12.42442727 | X12: 0.03390175251 | Z12: 1.229304745 | AA12: 323.9603396 | AB12: 123.4586113 | AC12: -76.54138866 | AD12: 3387.226601 | AE12: -612.773399 | AF12: 10.39559 | AG12: 123.3289116 | AH12: 3397.492491 | AI12: 0.8839701841 | AJ12: 0.8468066502
A13: PROD | B13: 8 | C13: 1.910453332 | D13: 4000 | E13: 4000 | F13: 200 | G13: 200 | H13: 3.958 | I13: 7 | J13: 0 | K13: 326.462795 | L13: 127.963031 | M13: 23.43182031 | N13: 3398.498208 | O13: 0.9267179891 | P13: 54.54621816 | Q13: 0.218475089 | R13: 14.36736846 | S13: 2.104113065e-05 | T13: 0.00300681349 | U13: 0.1545074083 | V13: 0.003878811274 | W13: 12.42884817 | X13: 0.03391381555 | Z13: 1.078595396 | AA13: 326.5321565 | AB13: 128.0878817 | AC13: -71.91211834 | AD13: 3389.011047 | AE13: -610.988953 | AF13: 9.612011662 | AG13: 127.963031 | AH13: 3398.498208 | AI13: 0.8909877388 | AJ13: 0.8472527618
A14: PROD | B14: 9 | C14: 2.149259999 | D14: 4000 | E14: 4000 | F14: 200 | G14: 200 | H14: 3.958 | I14: 7 | J14: 0 | K14: 328.6413273 | L14: 131.8843891 | M14: 23.43327999 | N14: 3398.709917 | O14: 0.9286817442 | P14: 54.42337011 | Q14: 0.2187739585 | R14: 14.42466019 | S14: 2.099843984e-05 | T14: 0.003029431441 | U14: 0.1541806928 | V14: 0.004956528953 | W14: 12.43593886 | X14: 0.03393316347 | Z14: 0.9609156208 | AA14: 328.7066854 | AB14: 132.0020338 | AC14: -67.99796623 | AD14: 3389.918096 | AE14: -610.0819043 | AF14: 8.909466394 | AG14: 131.8843892 | AH14: 3398.709917 | AI14: 0.8969212391 | AJ14: 0.8474795239
A15: PROD | B15: 10 | C15: 2.388066665 | D15: 4000 | E15: 4000 | F15: 200 | G15: 200 | H15: 3.958 | I15: 7 | J15: 0 | K15: 330.5046224 | L15: 135.2383204 | M15: 23.43015986 | N15: 3398.257381 | O15: 0.9303212015 | P15: 54.32103778 | Q15: 0.219010471 | R15: 14.47419723 | S15: 2.096288607e-05 | T15: 0.003047836963 | U15: 0.1539089881 | V15: 0.006167217171 | W15: 12.44593415 | X15: 0.03396043698 | Z15: 0.8664532518 | AA15: 330.5657073 | AB15: 135.3482731 | AC15: -64.65172688 | AD15: 3390.086095 | AE15: -609.9139053 | AF15: 8.28123919 | AG15: 135.2383204 | AH15: 3398.257381 | AI15: 0.901993835 | AJ15: 0.8475215237
A16: PROD | B16: 12 | C16: 2.865679998 | D16: 4000 | E16: 4000 | F16: 200 | G16: 200 | H16: 3.958 | I16: 7 | J16: 0 | K16: 333.5147389 | L16: 140.65653 | M16: 23.41249374 | N16: 3395.695126 | O16: 0.9328814734 | P16: 54.16063057 | Q16: 0.2193613815 | R16: 14.55972169 | S16: 2.090625702e-05 | T16: 0.003076945773 | U16: 0.1534865884 | V16: 0.008990283658 | W16: 12.47496977 | X16: 0.03403966467 | Z16: 0.724182851 | AA16: 333.5680158 | AB16: 140.7524284 | AC16: -59.24757155 | AD16: 3388.570937 | AE16: -611.4290629 | AF16: 7.220087434 | AG16: 140.65653 | AH16: 3395.695126 | AI16: 0.9101860452 | AJ16: 0.8471427343
A17: PROD | B17: 14 | C17: 3.343293331 | D17: 4000 | E17: 4000 | F17: 200 | G17: 200 | H17: 3.958 | I17: 7 | J17: 0 | K17: 335.829732 | L17: 144.8235176 | M17: 23.38200669 | N17: 3391.273353 | O17: 0.934761059 | P17: 54.04067837 | Q17: 0.2196129412 | R17: 14.63677207 | S17: 2.086188833e-05 | T17: 0.003098735257 | U17: 0.1531779628 | V17: 0.01234825953 | W17: 12.51600243 | X17: 0.0341516279 | Z17: 0.6221059665 | AA17: 335.8768463 | AB17: 144.9083234 | AC17: -55.09167661 | AD17: 3384.992329 | AE17: -615.0076713 | AF17: 6.365830506 | AG17: 144.8235176 | AH17: 3391.273353 | AI17: 0.9164860057 | AJ17: 0.8462480822
A18: PROD | B18: 16 | C18: 3.820906664 | D18: 4000 | E18: 4000 | F18: 200 | G18: 200 | H18: 3.958 | I18: 7 | J18: 0 | K18: 337.655162 | L18: 148.1092916 | M18: 23.34045617 | N18: 3385.246961 | O18: 0.936171054 | P18: 53.94734258 | Q18: 0.2198081046 | R18: 14.71194332 | S18: 2.082478482e-05 | T18: 0.003115473995 | U18: 0.1529472569 | V18: 0.01623992041 | W18: 12.56874947 | X18: 0.03429555542 | Z18: 0.5452845031 | AA18: 337.6976597 | AB18: 148.1857874 | AC18: -51.81421257 | AD18: 3379.657414 | AE18: -620.3425859 | AF18: 5.666042767 | AG18: 148.1092916 | AH18: 3385.246961 | AI18: 0.9214543445 | AJ18: 0.8449143535
A19: PROD | B19: 18 | C19: 4.298519997 | D19: 4000 | E19: 4000 | F19: 200 | G19: 200 | H19: 3.958 | I19: 7 | J19: 0 | K19: 339.1226539 | L19: 150.750777 | M19: 23.28887335 | N19: 3377.765505 | O19: 0.9372417801 | P19: 53.87226349 | Q19: 0.2199702946 | R19: 14.78893919 | S19: 2.079206729e-05 | T19: 0.003128820891 | U19: 0.1527725265 | V19: 0.02066531097 | W19: 12.6329667 | X19: 0.03447078094 | Z19: 0.4853728346 | AA19: 339.161737 | AB19: 150.8211266 | AC19: -49.1788734 | AD19: 3372.751626 | AE19: -627.2483745 | AF19: 5.084229135 | AG19: 150.750777 | AH19: 3377.765505 | AI19: 0.9254492801 | AJ19: 0.8431879064
A20: PROD | B20: 20 | C20: 4.77613333 | D20: 4000 | E20: 4000 | F20: 200 | G20: 200 | H20: 3.958 | I20: 7 | J20: 0 | K20: 340.3200178 | L20: 152.9060321 | M20: 23.22789374 | N20: 3368.92116 | O20: 0.9380577183 | P20: 53.81012475 | Q20: 0.2201131219 | R20: 14.87001593 | S20: 2.076197047e-05 | T20: 0.003139717092 | U20: 0.1526396424 | V20: 0.02562386641 | W20: 12.70849648 | X20: 0.0346768743 | Z20: 0.4373399991 | AA20: 340.3565638 | AB20: 152.9718149 | AC20: -47.02818512 | AD20: 3364.393305 | AE20: -635.6066949 | AF20: 4.593638045 | AG20: 152.9060311 | AH20: 3368.921152 | AI20: 0.9287095288 | AJ20: 0.8410983263
A21: INJ | B21: 1 | C21: 0.2388066665 | D21: 4000 | E21: 3342.339427 | F21: 200 | G21: =F21 -> 200 | H21: 3.958 | I21: 7 | J21: 0 | K21: 358.2774093 | L21: 185.2293367 | M21: 27.58163653 | N21: 4000.378165 | O21: 0.9516357593 | P21: 53.05863022 | Q21: 0.2201570633 | R21: 15.09600411 | S21: 2.059841071e-05 | T21: 0.002375278698 | U21: -0.1504617636 | V21: 7.04155859e-05 | W21: -12.13907089 | X21: -0.03312311852 | Z21: 8.870685057 | AA21: 358.4703736 | AB21: 185.5766725 | AC21: -14.42332753 | AD21: 3891.411531 | AE21: 549.0721036 | AF21: 109.3139698 | AG21: 185.2293368 | AH21: 4000.378165 | AI21: 0.9781355412 | AJ21: 1.164277781 | AO21: 156.017618
A22: INJ | B22: 2 | C22: 0.477613333 | D22: 4000 | E22: 3356.595305 | F22: 200 | G22: 200 | H22: 3.958 | I22: 7 | J22: 0 | K22: 351.2782757 | L22: 172.6308963 | M22: 27.58150019 | N22: 4000.358391 | O22: 0.9474398343 | P22: 53.27442034 | Q22: 0.2197527281 | R22: 14.92370207 | S22: 2.071578569e-05 | T22: 0.002614383348 | U22: -0.1511281134 | V22: 0.0003060324712 | W22: -12.16787295 | X22: -0.03320170891 | Z22: 4.417377 | AA22: 351.5728614 | AB22: 173.1611505 | AC22: -26.83884951 | AD22: 3916.061226 | AE22: 559.4659206 | AF22: 84.82741896 | AG22: 172.6308963 | AH22: 4000.358391 | AI22: 0.9593147339 | AJ22: 1.166676608 | AO22: 120.5629542
A23: INJ | B23: 3 | C23: 0.7164199996 | D23: 4000 | E23: 3370.182757 | F23: 200 | G23: 200 | H23: 3.958 | I23: 7 | J23: 0 | K23: 347.8000115 | L23: 166.3700207 | M23: 27.5813479 | N23: 4000.336304 | O23: 0.9453673514 | P23: 53.39683451 | Q23: 0.2194416296 | R23: 14.78509243 | S23: 2.078957701e-05 | T23: 0.002744584031 | U23: -0.1514594242 | V23: 0.0007154796917 | W23: -12.17283177 | X23: -0.03321523971 | Z23: 2.93816667 | AA23: 347.9602632 | AB23: 166.6584738 | AC23: -33.34152624 | AD23: 3935.694846 | AE23: 565.5120897 | AF23: 64.92991026 | AG23: 166.3700207 | AH23: 4000.336304 | AI23: 0.9494572646 | AJ23: 1.167798642 | AO23: 200.0627931
A24: INJ | B24: 4 | C24: 0.9552266661 | D24: 4000 | E24: 3381.949671 | F24: 200 | G24: 200 | H24: 3.958 | I24: 7 | J24: 0 | K24: 346.9184105 | L24: 164.783139 | M24: 27.58121997 | N24: 4000.317748 | O24: 0.9449616339 | P24: 53.43608685 | Q24: 0.2193124014 | R24: 14.69388809 | S24: 2.08198092e-05 | T24: 0.002829792487 | U24: -0.151524453 | V24: 0.001301784337 | W24: -12.1644885 | X24: -0.03319247395 | Z24: 2.202006294 | AA24: 346.952403 | AB24: 164.8443254 | AC24: -35.15567464 | AD24: 3949.613049 | AE24: 567.6633774 | AF24: 50.76588559 | AG24: 164.783139 | AH24: 4000.317748 | AI24: 0.9467071799 | AJ24: 1.167850924 | AO24: 473.8122398
A25: INJ | B25: 5 | C25: 1.194033333 | D25: 4000 | E25: 3391.944792 | F25: 200 | G25: 200 | H25: 3.958 | I25: 7 | J25: 0 | K25: 347.3683201 | L25: 165.5929762 | M25: 27.58112189 | N25: 4000.303524 | O25: 0.9454170684 | P25: 53.42989383 | Q25: 0.2192987 | R25: 14.63492976 | S25: 2.082497227e-05 | T25: 0.002889843301 | U25: -0.1514514593 | V25: 0.002065973592 | W25: -12.14948915 | X25: -0.03315154618 | Z25: 1.761809221 | AA25: 347.3293644 | AB25: 165.5228559 | AC25: -34.47714407 | AD25: 3959.384109 | AE25: 567.4393166 | AF25: 40.98953498 | AG25: 165.5929762 | AH25: 4000.303524 | AI25: 0.9477357708 | AJ25: 1.167290257 | AO25: 251.0960147
A26: INJ | B26: 6 | C26: 1.432839999 | D26: 4000 | E26: 3400.536566 | F26: 200 | G26: 200 | H26: 3.958 | I26: 7 | J26: 0 | K26: 348.4237922 | L26: 167.492826 | M26: 27.58104813 | N26: 4000.292824 | O26: 0.9462517554 | P26: 53.40286106 | Q26: 0.2193372334 | R26: 14.59425491 | S26: 2.081826544e-05 | T26: 0.002934744486 | U26: -0.1513178643 | V26: 0.003008632693 | W26: -12.13051992 | X26: -0.03309978605 | Z26: 1.468917548 | AA26: 348.3488047 | AB26: 167.3578485 | AC26: -32.64215149 | AD26: 3966.392552 | AE26: 565.8559865 | AF26: 34.0352496 | AG26: 167.492826 | AH26: 4000.292824 | AI26: 0.9505174534 | AJ26: 1.166401971 | AO26: 549.2952853
A27: INJ | B27: 7 | C27: 1.671646666 | D27: 4000 | E27: 3408.091249 | F27: 200 | G27: 200 | H27: 3.958 | I27: 7 | J27: 0 | K27: 349.719258 | L27: 169.8246645 | M27: 27.58099394 | N27: 4000.284966 | O27: 0.9472228706 | P27: 53.36785299 | Q27: 0.2193925383 | R27: 14.56328183 | S27: 2.080681378e-05 | T27: 0.002969737849 | U27: -0.1511627296 | V27: 0.004129795206 | W27: -12.10873723 | X27: -0.03304034899 | Z27: 1.259898106 | AA27: 349.6287203 | AB27: 169.6616966 | AC27: -30.33830345 | AD27: 3971.560837 | AE27: 563.4695879 | AF27: 28.88709734 | AG27: 169.8246645 | AH27: 4000.284966 | AI27: 0.9540098785 | AJ27: 1.165332894 | AO27: 125.458422
A28: INJ | B28: 8 | C28: 1.910453332 | D28: 4000 | E28: 3414.903584 | F28: 200 | G28: 200 | H28: 3.958 | I28: 7 | J28: 0 | K28: 351.0754387 | L28: 172.2657897 | M28: 27.58095524 | N28: 4000.279352 | O28: 0.9482142061 | P28: 53.33116365 | Q28: 0.2194478693 | R28: 14.5371884 | S28: 2.079414718e-05 | T28: 0.002997695198 | U28: -0.1510046926 | V28: 0.005428771789 | W28: -12.0847106 | X28: -0.03297478904 | Z28: 1.10316925 | AA28: 350.9800051 | AB28: 172.0940091 | AC28: -27.9059909 | AD28: 3975.475995 | AE28: 560.5724112 | AF28: 24.97513775 | AG28: 172.2657897 | AH28: 4000.279352 | AI28: 0.9576970441 | AJ28: 1.164154682 | AO28: 202.7673864
A29: INJ | B29: 9 | C29: 2.149259999 | D29: 4000 | E29: 3421.197405 | F29: 200 | G29: 200 | H29: 3.958 | I29: 7 | J29: 0 | K29: 352.4059143 | L29: 174.6606457 | M29: 27.58092896 | N29: 4000.275541 | O29: 0.9491725116 | P29: 53.29573839 | Q29: 0.2194962653 | R29: 14.51330134 | S29: 2.078193325e-05 | T29: 0.003020536009 | U29: -0.1508522349 | V29: 0.006904663138 | W29: -12.05874276 | X29: -0.03290393223 | Z29: 0.9812466823 | AA29: 352.3109416 | AB29: 174.4896949 | AC29: -25.5103051 | AD29: 3978.51407 | AE29: 557.3166644 | AF29: 21.93242196 | AG29: 174.6606457 | AH29: 4000.275541 | AI29: 0.9613286869 | AJ29: 1.162901054 | AO29: 474.986089
A30: INJ | B30: 10 | C30: 2.388066665 | D30: 4000 | E30: 3427.140365 | F30: 200 | G30: 200 | H30: 3.958 | I30: 7 | J30: 0 | K30: 353.6708246 | L30: 176.9374843 | M30: 27.58091288 | N30: 4000.273209 | O30: 0.9500755101 | P30: 53.26285377 | Q30: 0.2195354352 | R30: 14.49012217 | S30: 2.077091078e-05 | T30: 0.00303954068 | U30: -0.1507088575 | V30: 0.008556317149 | W30: -12.03099916 | X30: -0.03282823 | Z30: 0.8836672558 | AA30: 353.5788834 | AB30: 176.7719901 | AC30: -23.22800989 | AD30: 3980.92157 | AE30: 553.7812044 | AF30: 19.51713326 | AG30: 176.9374843 | AH30: 4000.273209 | AI30: 0.9647884398 | AJ30: 1.161586963 | AO30: 252.7190315
A31: INJ | B31: 12 | C31: 2.865679998 | D31: 4000 | E31: 3438.44666 | F31: 200 | G31: 200 | H31: 3.958 | I31: 7 | J31: 0 | K31: 355.9508628 | L31: 181.0415531 | M31: 27.58090528 | N31: 4000.272106 | O31: 0.9516945015 | P31: 53.20611604 | Q31: 0.2195861609 | R31: 14.44282053 | S31: 2.075334794e-05 | T31: 0.003069337394 | U31: -0.1504524766 | V31: 0.01238125516 | W31: -11.97049496 | X31: -0.032663136 | Z31: 0.7371746479 | AA31: 355.8675539 | AB31: 180.8915971 | AC31: -19.1084029 | AD31: 3984.457188 | AE31: 546.0105275 | AF31: 15.9648745 | AG31: 181.0415531 | AH31: 4000.272106 | AI31: 0.9710333911 | AJ31: 1.158795695 | AO31: 549.9054848
A32: INJ | B32: 14 | C32: 3.343293331 | D32: 4000 | E32: 3449.509866 | F32: 200 | G32: 200 | H32: 3.958 | I32: 7 | J32: 0 | K32: 357.8960689 | L32: 184.542924 | M32: 27.58092393 | N32: 4000.274811 | O32: 0.9530804049 | P32: 53.16094513 | Q32: 0.2196056156 | R32: 14.39186498 | S32: 2.074171436e-05 | T32: 0.003091618811 | U32: -0.150233699 | V32: 0.01689045484 | W32: -11.90348076 | X32: -0.03248027859 | Z32: 0.6324008793 | AA32: 357.8214147 | AB32: 184.4085465 | AC32: -15.59145349 | AD32: 3986.894519 | AE32: 537.384653 | AF32: 13.51466976 | AG32: 184.542924 | AH32: 4000.274811 | AI32: 0.976364768 | AJ32: 1.1557858 | AO32: 187.4477351
A33: INJ | B33: 16 | C33: 3.820906664 | D33: 4000 | E33: 3460.740475 | F33: 200 | G33: 200 | H33: 3.958 | I33: 7 | J33: 0 | K33: 359.5449859 | L33: 187.5109746 | M33: 27.58096406 | N33: 4000.280632 | O33: 0.9542726971 | P33: 53.12563065 | Q33: 0.2196010787 | R33: 14.33604051 | S33: 2.073531091e-05 | T33: 0.003109073825 | U33: -0.1500459933 | V33: 0.02206937366 | W33: -11.82996194 | X33: -0.03227967239 | Z33: 0.5537186012 | AA33: 359.4777345 | AB33: 187.3899221 | AC33: -12.61007788 | AD33: 3988.651056 | AE33: 527.9105806 | AF33: 11.75062869 | AG33: 187.5109746 | AH33: 4000.280632 | AI33: 0.9808842635 | AJ33: 1.152542667 | AO33: 375.9418439
A34: INJ | B34: 18 | C34: 4.298519997 | D34: 4000 | E34: 3472.394346 | F34: 200 | G34: 200 | H34: 3.958 | I34: 7 | J34: 0 | K34: 360.9446881 | L34: 190.0304386 | M34: 27.58102295 | N34: 4000.289173 | O34: 0.955311016 | P34: 53.09838761 | Q34: 0.2195782761 | R34: 14.27491936 | S34: 2.07333672e-05 | T34: 0.003122860478 | U34: -0.1498829097 | V34: 0.02789773027 | W34: -11.74991868 | X34: -0.03206126339 | Z34: 0.4924468409 | AA34: 360.8834538 | AB34: 189.9202168 | AC34: -10.07978318 | AD34: 3989.965432 | AE34: 517.5710862 | AF34: 10.43396277 | AG34: 190.0304386 | AH34: 4000.289173 | AI34: 0.9847199612 | AJ34: 1.149053084 | AO34: 152.5233631
A35: INJ | B35: 20 | C35: 4.77613333 | D35: 4000 | E35: 3484.636835 | F35: 200 | G35: 200 | H35: 3.958 | I35: 7 | J35: 0 | K35: 362.1376254 | L35: 192.1777256 | M35: 27.58109902 | N35: 4000.300205 | O35: 0.9562285807 | P35: 53.07771687 | Q35: 0.2195412526 | R35: 14.20838761 | S35: 2.073523553e-05 | T35: 0.003134108229 | U35: -0.1497390871 | V35: 0.03435620847 | W35: -11.66330755 | X35: -0.03182493307 | Z35: 0.4433747587 | AA35: 362.0811715 | AB35: 192.0761087 | AC35: -7.92389127 | AD35: 3990.976471 | AE35: 506.3396354 | AF35: 9.425351455 | AG35: 192.1777256 | AH35: 4000.300205 | AI35: 0.9879880982 | AJ35: 1.145306286 | AO35: 367.4410848
AO36: 156.4095563
AO37: 368.6502775
AO38: 121.0553623
AO39: 360.0386187
AO40: 200.2411378
AO41: 478.7513249
AO42: 520.506859
AO43: 251.1861213
AO44: 551.6737212
AO45: 597.3036673
AO46: 125.8388715
AO47: 361.3349758
AO48: 202.9171562
AO49: 479.32538
AO50: 521.1223815
AO51: 252.7969756
AO52: 551.9912606
AO53: 597.5867617
AO54: 175.3782283
AO55: 373.2762226
AO56: 406.1136423
AO57: 138.7154868
AO58: 364.606943
AO59: 401.5643839
AO60: 142.8605778
AO61: 365.4848126
AO62: 402.1774278
AO63: 105.8701394
AO64: 356.6958917
AO65: 397.5797656
AO66: 182.0445832
AO67: 473.4297799
AO68: 520.0883968
AO69: 231.0768298
AO70: 545.5772017
AO71: 595.2301867
AO72: 111.0155376
AO73: 357.6666
AO74: 398.2337
AO75: 184.8945912
AO76: 473.9351678
AO77: 520.360437
AO78: 232.7684102
AO79: 545.8749722
AO80: 595.3610592
AO81: 187.037657
AO82: 152.0186034
AO83: 156.0172604
AO84: 120.5660603
AO85: 200.063719
AO86: 251.0963925
AO87: 549.2950443
AO88: 125.4618314
AO89: 202.7685552
AO90: 252.7193567
AO91: 549.9056315
AO92: 187.4528341
AO93: 375.93538
AO94: 152.521917
AO95: 367.4461043
AO96: 156.4255144
AO97: 368.6480523
AO98: 121.0740587
AO99: 360.0386345
AO100: 200.2537628
AO101: 478.7501306
AO102: 520.5048112
AO103: 251.1864808
AO104: 551.6724024
AO105: 597.3032455
AO106: 125.8594826
AO107: 361.329157
AO108: 202.929149
AO109: 479.3258012
AO110: 521.1228272
AO111: 252.7972734
AO112: 551.9915568
AO113: 597.5861973
AO114: 175.3814689
AO115: 373.2785806
AO116: 406.1135518
AO117: 138.710721
AO118: 364.6101509
AO119: 401.5658552
AO120: 142.8764824
AO121: 365.4895455
AO122: 402.178137
AO123: 105.8887084
AO124: 356.7016432
AO125: 397.5822536
AO126: 182.0577053
AO127: 473.4305494
AO128: 520.089064
AO129: 231.0850817
AO130: 545.5768942
AO131: 595.2300458
AO132: 111.0363839
AO133: 357.6686723
AO134: 398.2353246
AO135: 184.9070412
AO136: 473.9376066
AO137: 520.3612035
AO138: 232.7758297
AO139: 545.8756648
AO140: 595.3610383
AO141: 129.2325448
AO142: 132.8295557
AO143: 98.25967407
AO144: 168.855434
AO145: 370.5746884
AO146: 102.8608299
AO147: 171.3622353
AO148: 372.0481415
AO149: 68.24648021
AO150: 140.1463987
AO151: 363.4975481
AO152: 186.0312495
AO153: 436.5539299
AO154: 73.99727337
AO155: 143.0648163
AO156: 365.0245442
AO157: 187.6128769
AO158: 437.3189587
AO159: 129.847605
AO160: 272.295528
AO161: 133.3130574
AO162: 273.7490793
AO163: 98.85326646
AO164: 264.6164585
AO165: 169.0803213
AO166: 377.1255348
AO167: 408.5107611
AO168: 103.3230293
AO169: 266.2020708
AO170: 171.5523952
AO171: 377.7899749
AO172: 409.2955916
AO173: 483.0004824
AO174: 68.81069427
AO175: 256.9031325
AO176: 140.3639942
AO177: 370.0458923
AO178: 404.9293807
AO179: 186.1394966
AO180: 439.8694073
AO181: 479.265775
AO182: 74.43363364
AO183: 258.628175
AO184: 143.2486758
AO185: 370.7780846
AO186: 405.7437112
AO187: 187.7070219
AO188: 440.2446788
AO189: 479.6213481
AO190: 120.8869855
AO191: 271.4612973
AO192: 296.8868448
AO193: 124.5130289
AO194: 272.4822653
AO195: 297.66453
AO196: 88.51887852
AO197: 263.2575073
AO198: 292.7085257
AO199: 155.9010502
AO200: 373.3702146
... 811 more rows

Sheet Results
B1: Wellhead Pressure vs. Flow, BHT, and Tubing ID for BHP = 3,000 psi + Depth = 8,500 ft
B2: MMscf/d | C2: pwh_multi
C3: 200 - 1.61 | D3: 300 - 1.61 | E3: 400 - 1.61 | F3: 200 - 2.441 | G3: 300 - 2.441 | H3: 400 - 2.441 | I3: 200 - 3.958 | J3: 300 - 3.958 | K3: 400 - 3.958
B4: 1 | C4: 2495.019447 | D4: 2553.256362 | E4: 2150.397405 | F4: 2508.476107 | G4: 2568.850531 | H4: 2612.460036 | I4: 2459.348372 | J4: 2569.059342 | K4: 2612.644232
B5: 2 | C5: 2457.813355 | D5: 2511.78599 | E5: 2547.478635 | F5: 2516.036492 | G5: 2580.283338 | H5: 2625.714976 | I5: 2521.157269 | J5: 2586.033118 | K5: 2632.256851
B6: 3 | C6: 2376.80726 | D6: 2415.776779 | E6: 2435.789668 | F6: 2514.688468 | G6: 2579.995803 | H6: 2625.16159 | I6: 2528.699391 | J6: 2596.377662 | K6: 2643.991425
B7: 4 | C7: 2249.408993 | D7: 2260.934118 | E7: 2253.257183 | F7: 2506.314462 | G7: 2570.659028 | H7: 2614.011816 | I7: 2533.245465 | J7: 2602.599739 | K7: 2650.887562
B8: 5 | C8: 2069.223965 | D8: 2036.582237 | E8: 1983.65275 | F8: 2491.946898 | G8: 2553.726979 | H8: 2593.988888 | I8: 2535.84292 | J8: 2606.190708 | K8: 2654.741419
B9: 6 | C9: 1823.088629 | D9: 1718.775032 | E9: 1587.117892 | F9: 2472.096642 | G9: 2529.903134 | H9: 2565.893716 | I9: 2537.076664 | J9: 2607.974725 | K9: 2656.529294
B10: 7 | C10: 1481.884865 | D10: 1242.592284 | F10: 2446.995098 | G10: 2499.489322 | H10: 2530.036138 | I10: 2537.284666 | J10: 2608.421969 | K10: 2656.798653
B11: 8 | C11: 955.8249762 | F11: 2416.713257 | G11: 2462.555847 | H11: 2486.440495 | I11: 2536.672017 | J11: 2607.814266 | K11: 2655.872605
B12: 9 | F12: 2381.217803 | G12: 2419.01937 | H12: 2434.935514 | I12: 2535.369073 | J12: 2606.328716 | K12: 2653.951433
B13: 10 | F13: 2340.396843 | G13: 2368.676023 | H13: 2375.187714 | I13: 2533.462039 | J13: 2604.081228 | K13: 2651.164614
B14: 12 | F14: 2241.987661 | G14: 2246.188739 | H14: 2228.804225 | I14: 2528.053825 | J14: 2597.590372 | K14: 2643.313482
B15: 14 | F15: 2119.174136 | G15: 2091.01223 | H15: 2040.833841 | I15: 2520.741091 | J15: 2588.7282 | K15: 2632.739718
B16: 16 | F16: 1968.155035 | G16: 1896.066288 | H16: 1799.419213 | I16: 2511.678131 | J16: 2577.693485 | K16: 2619.653346
B17: 18 | F17: 1782.671502 | G17: 1648.436012 | H17: 1480.150989 | I17: 2500.949184 | J17: 2564.591552 | K17: 2604.160422
B18: 20 | F18: 1551.612607 | G18: 1320.530497 | H18: 1014.974671 | I18: 2488.599593 | J18: 2549.476017 | K18: 2586.309928
B21: MMscf/d | C21: Twh - Wellhead temperature (°F) | L21: TA - Adiabatic Wellhead temperature (°F)
C22: 200 - 1.61 | D22: 300 - 1.61 | E22: 400 - 1.61 | F22: 200 - 2.441 | G22: 300 - 2.441 | H22: 400 - 2.441 | I22: 200 - 3.958 | J22: 300 - 3.958 | K22: 400 - 3.958 | O22: 200 - Adiabatic | P22: 300 - Adiabatic | Q22: 400 - Adiabatic | R22: 200 - 3.958 | S22: 300 - 3.958 | T22: 400 - 3.958
B23: 1 | C23: 76.43864941 | D23: 90.60758122 | E23: -178.6170782 | F23: 76.50620555 | G23: 90.68664664 | H23: 104.2988174 | I23: 38.04299791 | J23: 88.74521904 | K23: 101.5268362 | O23: =200+R23*9/5 -> 176.3503846 | P23: =300+S23*9/5 -> 277.5634332 | Q23: =400+T23*9/5 -> 378.8265381 | R23: -13.13867522 | S23: -12.46475933 | T23: -11.76303439
B24: 2 | C24: 91.29395665 | D24: 117.650343 | E24: 143.5250235 | F24: 91.81374707 | G24: 118.2426924 | H24: 144.19126 | I24: 90.00680649 | J24: 114.9199399 | K24: 139.3052638 | O24: =200+R24*9/5 -> 175.9007379 | P24: =300+S24*9/5 -> 277.5957188 | Q24: =400+T24*9/5 -> 378.9740078 | R24: -13.38847896 | S24: -12.44682287 | T24: -11.6811068
B25: 3 | C25: 102.4492439 | D25: 139.1319119 | E25: 175.8310909 | F25: 104.0939063 | G25: 140.9526107 | H25: 177.8015343 | I25: 102.0529336 | J25: 137.0287994 | K25: 171.8957193 | O25: 175.9055946 | P25: 277.7107504 | Q25: 379.2321693 | R25: -13.38578079 | S25: -12.38291642 | T25: -11.53768372
B26: 4 | C26: 109.8233846 | D26: 154.8083564 | E26: 200.3240964 | F26: 113.5386453 | G26: 158.8381441 | H26: 204.5664436 | I26: 111.5939798 | J26: 154.872181 | K26: 198.4674089 | O26: 175.9211488 | P26: 277.8363771 | Q26: 379.4826577 | R26: -13.37713954 | S26: -12.31312383 | T26: -11.39852349
B27: 5 | C27: 113.6433885 | D27: 165.1693706 | E27: 217.6797367 | F27: 120.7868049 | G27: 172.8472221 | H27: 225.6512945 | I27: 119.1447631 | J27: 169.1694671 | K27: 219.830051 | O27: 175.9329055 | P27: 277.9446873 | Q27: 379.6901902 | R27: -13.37060806 | S27: -12.25295148 | T27: -11.28322765
B28: 6 | C28: 113.6855817 | D28: 170.1543739 | E28: 227.9895939 | F28: 126.3895756 | G28: 183.9071537 | H28: 242.375073 | I28: 125.1956487 | J28: 180.7216095 | K28: 237.0952209 | O28: 175.9351335 | P28: 278.0285956 | Q28: 379.8519789 | R28: -13.36937029 | S28: -12.2063358 | T28: -11.19334505
B29: 7 | C29: 108.5792006 | D29: 167.6250251 | F29: 130.7452447 | G29: 192.7275089 | H29: 255.7911566 | I29: 130.1195585 | J29: 190.1777047 | K29: 251.2138408 | O29: 175.9259513 | P29: 278.088277 | Q29: 379.9737965 | R29: -13.37447151 | S29: -12.17317943 | T29: -11.12566861
B30: 8 | C30: 92.56781526 | F30: 134.1315212 | G30: 199.8203585 | H30: 266.6726678 | I30: 134.1859862 | J30: 198.0236718 | K30: 262.9127798 | O30: 175.9050023 | P30: 278.1259308 | Q30: 380.0623592 | R30: -13.38610985 | S30: -12.15226064 | T30: -11.0764671
B31: 9 | F31: 136.7409683 | G31: 205.5504786 | H31: 275.5757072 | I31: 137.589335 | J31: 204.6173247 | K31: 272.7315626 | O31: 175.8724912 | P31: 278.1440127 | Q31: 380.1234003 | R31: -13.40417153 | S31: -12.14221516 | T31: -11.04255536
B32: 10 | F32: 138.7074127 | G32: 210.1781723 | H32: 282.9004484 | I32: 140.4710388 | J32: 210.2226994 | K32: 281.0697594 | O32: 175.8287896 | P32: 278.1446983 | Q32: 380.1614169 | R32: -13.42845021 | S32: -12.14183429 | T32: -11.02143508
B33: 12 | F33: 141.0513517 | G33: 216.8163452 | H33: 293.8883013 | I33: 145.0617304 | J33: 219.2088186 | K33: 294.4250451 | O33: 175.7093078 | P33: 278.1006683 | Q33: 380.1812816 | R33: -13.494829 | S33: -12.16629537 | T33: -11.01039912
B34: 14 | F34: 141.5823936 | G34: 220.6486859 | H34: 301.0900834 | I34: 148.5246387 | J34: 226.0581757 | K34: 304.6060461 | O34: 175.5490176 | P34: 278.0041314 | Q34: 380.1406498 | R34: -13.58387911 | S34: -12.21992699 | T34: -11.03297235
B35: 16 | F35: 140.4008306 | G35: 222.0330384 | H35: 305.1419023 | I35: 151.1975502 | J35: 231.4177298 | K35: 312.5881421 | O35: 175.3494408 | P35: 277.8613715 | Q35: 380.0503877 | R35: -13.6947551 | S35: -12.29923805 | T35: -11.08311793
B36: 18 | F36: 137.3248142 | G36: 220.8424508 | H36: 305.9447666 | I36: 153.2929074 | J36: 235.6964619 | K36: 318.9858043 | O36: 175.1112863 | P36: 277.6760973 | Q36: 379.9168734 | R36: -13.82706318 | S36: -12.40216818 | T36: -11.15729255
B37: 20 | F37: 131.7721494 | G37: 216.1587201 | H37: 301.791438 | I37: 154.9503695 | J37: 239.1642607 | K37: 324.2032783 | O37: 174.8346287 | P37: 277.4503454 | Q37: 379.7437972 | R37: -13.98076184 | S37: -12.52758587 | T37: -11.253446
B39: Tubing ID = 2.441
B40: Ngp: | C40: 0.1530803699 | D40: 0.1255464509 | E40: 0.10749223
C41: Nfp/Ngp | G41: Nfp
C42: 200 | D42: 300 | E42: 400 | G42: 200 | H42: 300 | I42: 400
B43: 1 | C43: =G43/C$40 -> 0.008032371242 | D43: =H43/D$40 -> 0.01195082998 | E43: =I43/E$40 -> 0.01631136606 | G43: 0.001229598361 | H43: 0.001500384289 | I43: 0.001753345112
B44: 2 | C44: 0.03439893599 | D44: 0.05117567973 | E44: 0.06982035285 | G44: 0.005265801845 | H44: 0.006424924962 | I44: 0.007505145426
B45: 3 | C45: 0.07963333974 | D45: 0.1184427789 | E45: 0.161529543 | G45: 0.0121903011 | H45: 0.01487007053 | I45: 0.01736317079
B46: 4 | C46: 0.143814642 | D46: 0.2138421897 | E46: 0.2915613067 | G46: 0.02201519859 | H46: 0.02684712797 | I46: 0.03134057504
B47: 5 | C47: 0.2269519081 | D47: 0.3374057742 | E47: 0.4599714692 | G47: 0.03474188204 | H47: 0.04236009746 | I47: 0.04944335896
B48: 6 | C48: 0.3290593332 | D48: 0.4891534373 | E48: 0.666798025 | G48: 0.05037252444 | H48: 0.061411478 | I48: 0.07167560666
B49: 7 | C49: 0.4501446513 | D49: 0.6691001507 | E49: 0.9120688361 | G49: 0.06890830972 | H49: 0.08400314921 | I49: 0.0980403131
B50: 8 | C50: 0.5902145093 | D50: 0.8772582555 | E50: 1.195805424 | G50: 0.0903502554 | H50: 0.1101366605 | I50: 0.1285397917
B51: 9 | C51: 0.7492751386 | D51: 1.113638656 | E51: 1.51802569 | G51: 0.1146993154 | H51: 0.1398133809 | I51: 0.1631759666
B52: 10 | C52: 0.9273326928 | D52: 1.378251567 | E52: 1.878745494 | G52: 0.1419564316 | H52: 0.1730345926 | I52: 0.2019505427
B53: 12 | C53: 1.34046406 | D53: 1.992215365 | E53: 2.715743576 | G53: 0.2051987341 | H53: 0.2501155685 | I53: 0.291921333
B54: 14 | C54: 1.829663692 | D54: 2.719235446 | E54: 3.706924221 | G54: 0.2800855948 | H54: 0.3413903594 | I54: 0.398465551
B55: 16 | C55: 2.394997512 | D55: 3.559415445 | E55: 4.852439862 | G55: 0.3666271051 | H55: 0.4468719764 | I55: 0.5215995816
B56: 18 | C56: 3.036551006 | D56: 4.512898823 | E56: 6.152521062 | G56: 0.4648363512 | H56: 0.5665784305 | I56: 0.661348209
B57: 20 | C57: 3.754446509 | D57: 5.579922934 | E57: 7.607642435 | G57: 0.5747320603 | H57: 0.7005395207 | I57: 0.8177624502
B60: Wellhead Pressure vs. Flow, BHT, and Tubing ID for BHP = 4,000 psi + Depth = 8,500 ft
B61: MMscf/d | C61: pwh_multi
C62: 200 - 1.61 | D62: 300 - 1.61 | E62: 400 - 1.61 | F62: 200 - 2.441 | G62: 300 - 2.441 | H62: 400 - 2.441 | I62: 200 - 3.958 | J62: 300 - 3.958 | K62: 400 - 3.958
B63: 1 | C63: 3356.103287 | D63: 3430.278547 | E63: 3484.706594 | F63: 3366.563691 | G63: 3442.324684 | H63: 3498.272525 | I63: 3366.350526 | J63: 3441.722639 | K63: 3497.500075
B64: 2 | C64: 3333.419729 | D64: 3407.435593 | E64: 3459.15543 | F64: 3378.528311 | G64: 3460.117776 | H64: 3519.133781 | I64: 3381.849238 | J64: 3463.606197 | K64: 3523.058593
B65: 3 | C65: 3275.4416 | D65: 3340.45079 | E65: 3381.689777 | F65: 3381.323997 | G65: 3465.442611 | H65: 3525.159465 | I65: 3391.552007 | J65: 3477.162046 | K65: 3538.598771
B66: 4 | C66: 3182.852063 | D66: 3230.099863 | E66: 3252.752618 | F66: 3377.401151 | G66: 3461.897003 | H66: 3520.757655 | I66: 3397.679026 | J66: 3485.663722 | K66: 3548.150109
B67: 5 | C67: 3054.573879 | D67: 3074.420627 | E67: 3069.064753 | F67: 3368.118412 | G67: 3451.45427 | H67: 3508.310161 | I67: 3401.544377 | J67: 3491.031759 | K67: 3554.050927
B68: 6 | C68: 2887.712364 | D68: 2868.323586 | E68: 2822.609532 | F68: 3354.188967 | G68: 3435.13159 | H68: 3489.015718 | I68: 3403.878273 | J68: 3494.319521 | K68: 3557.561197
B69: 7 | C69: 2677.012406 | D69: 2602.199741 | E69: 2497.657312 | F69: 3335.994224 | G69: 3413.462035 | H69: 3463.479948 | I69: 3405.10168 | J69: 3496.125889 | K69: 3559.384913
B70: 8 | C70: 2413.404666 | D70: 2257.835791 | E70: 2061.092522 | F70: 3313.737169 | G70: 3386.718812 | H70: 3431.997702 | I70: 3405.469931 | J70: 3496.809362 | K70: 3559.937218
B71: 9 | C71: 2080.173664 | D71: 2011.657232 | E71: 1420.241744 | F71: 3287.518236 | G71: 3355.029596 | H71: 3394.685038 | I71: 3405.14552 | J71: 3496.595569 | K71: 3559.475808
B72: 10 | C72: 1640.810021 | F72: 3257.376447 | G72: 3318.426264 | H72: 3351.543135 | I72: 3404.236199 | J72: 3495.632484 | K72: 3558.167901
B73: 12 | F73: 3185.253231 | G73: 3230.289722 | H73: 3247.376958 | I73: 3400.936842 | J73: 3491.83116 | K73: 3553.428812
B74: 14 | F74: 3096.920341 | G74: 3121.445636 | H74: 3118.025895 | I74: 3395.944326 | J74: 3485.907682 | K74: 3546.275665
B75: 16 | F75: 2991.491342 | G75: 2990.288503 | H75: 2960.927161 | I75: 3389.460151 | J75: 3478.129723 | K75: 3536.999482
B76: 18 | F76: 2867.624092 | G76: 2834.353671 | H76: 2772.089134 | I76: 3381.600917 | J76: 3468.649876 | K76: 3525.76301
B77: 20 | F77: 2723.398135 | G77: 2649.958829 | H77: 2545.264864 | I77: 3372.437086 | J77: 3457.558722 | K77: 3512.660359
B79: MMscf/d | C79: Twh - Wellhead temperature (°F) | L79: TA - Adiabatic Wellhead temperature (°F) | O79: Delta_Tad
C80: 200 - 1.61 | D80: 300 - 1.61 | E80: 400 - 1.61 | F80: 200 - 2.441 | G80: 300 - 2.441 | H80: 400 - 2.441 | I80: 200 - 3.958 | J80: 300 - 3.958 | K80: 400 - 3.958 | L80: 200 - Adiabatic | M80: 300 - Adiabatic | N80: 400 - Adiabatic | O80: 200 - 3.958 | P80: 300 - 3.958 | Q80: 400 - 3.958
B81: 1 | C81: 77.26669692 | D81: 91.8432576 | E81: 105.9074858 | F81: 77.29336558 | G81: 91.87283005 | H81: 105.9422072 | I81: 76.14460643 | J81: 89.83367776 | K81: 103.0404869 | L81: =200+O81*9/5 -> 178.4118536 | M81: =300+P81*9/5 -> 279.4091712 | N81: =400+Q81*9/5 -> 380.3580278 | O81: -11.99341464 | P81: -11.43934931 | Q81: -10.91220679
B82: 2 | C82: 93.13718038 | D82: 120.2938005 | E82: 146.9057302 | F82: 93.36714694 | G82: 120.5609691 | H82: 147.2171751 | I82: 91.45055441 | J82: 117.0968009 | K82: 142.1755035 | L82: =200+O82*9/5 -> 178.2509273 | M82: =300+P82*9/5 -> 279.2389149 | N82: =400+Q82*9/5 -> 380.243486 | O82: -12.08281815 | P82: -11.53393618 | Q82: -10.9758411
B83: 3 | C83: 105.3713352 | D83: 142.953219 | E83: 180.3710257 | F83: 106.1319888 | G83: 143.8286028 | H83: 181.3545838 | I83: 103.9375021 | J83: 139.7472466 | K83: 175.3050286 | L83: 178.1562885 | M83: 279.2006195 | N83: 380.3175929 | O83: -12.13539528 | P83: -11.55521141 | Q83: -10.93467061
B84: 4 | C84: 114.1545309 | D84: 159.9930988 | E84: 206.106553 | F84: 115.8893358 | G84: 161.9587867 | H84: 208.2460326 | I84: 113.7148055 | J84: 157.783665 | K84: 201.9708584 | L84: 178.1006885 | M84: 279.2202607 | N84: 380.449371 | O84: -12.16628416 | P84: -11.5442996 | Q84: -10.86146054
B85: 5 | C85: 120.0954148 | D85: 172.4168635 | E85: 225.4162696 | F85: 123.3820848 | G85: 176.0961083 | H85: 229.3308873 | I85: 121.3888335 | J85: 172.1080706 | K85: 223.2470171 | L85: 178.0641892 | M85: 279.2575202 | N85: 380.5815456 | O85: -12.18656157 | P85: -11.52359986 | Q85: -10.78803024
B86: 6 | C86: 123.6059242 | D86: 181.0178834 | E86: 239.4860954 | F86: 129.2194435 | G86: 187.2627136 | H86: 246.042598 | I86: 127.50387 | J86: 183.6155233 | K86: 240.3644527 | L86: 178.0358212 | M86: 279.2950902 | N86: 380.696066 | O86: -12.20232155 | P86: -11.50272768 | Q86: -10.72440778
B87: 7 | C87: 124.7969367 | D87: 186.1482676 | E87: 248.9412261 | F87: 133.8317566 | G87: 196.2130493 | H87: 259.4813185 | I87: 132.4616468 | J87: 192.9994311 | K87: 254.3230254 | L87: 178.0098434 | M87: 279.3262809 | N87: 380.7894848 | O87: -12.21675369 | P87: -11.4853995 | Q87: -10.67250843
B88: 8 | C88: 123.406017 | D88: 187.5614853 | E88: 253.5343325 | F88: 137.5155664 | G88: 203.4816309 | H88: 270.4404732 | I88: 136.5470463 | J88: 200.7666485 | K88: 265.869432 | L88: 177.9832052 | M88: 279.348837 | N88: 380.8630028 | O88: -12.23155268 | P88: -11.47286835 | Q88: -10.63166513
B89: 9 | C89: 118.546138 | D89: 81.40939044 | E89: 250.6531968 | F89: 140.477074 | G89: 209.4473164 | H89: 279.4871552 | I89: 139.9629206 | J89: 207.2843495 | K89: 275.5503914 | L89: 177.9542536 | M89: 279.3623213 | N89: 380.9189691 | O89: -12.24763687 | P89: -11.46537704 | Q89: -10.60057274
B90: 10 | C90: 107.7616925 | F90: 142.8616463 | G90: 214.3813339 | H90: 287.0297336 | I90: 142.8554533 | J90: 212.8210242 | K90: 283.7674258 | L90: 177.9220752 | M90: 279.3669722 | N90: 380.9597385 | O90: -12.26551375 | P90: -11.46279323 | Q90: -10.57792306
B91: 12 | F91: 146.2872132 | G91: 221.890128 | H91: 298.7159667 | I91: 147.472512 | J91: 221.6974161 | K91: 296.9286714 | L91: 177.8461202 | M91: 279.3517012 | N91: 381.0034653 | O91: -12.30771102 | P91: -11.4712771 | Q91: -10.55363037
B92: 14 | F92: 148.3260609 | G92: 227.0421431 | H92: 307.0729449 | I92: 150.9757655 | J92: 228.4749336 | K92: 306.9720428 | L92: 177.7531714 | M92: 279.3068804 | N92: 381.0063256 | O92: -12.35934925 | P92: -11.49617756 | Q92: -10.55204131
B93: 16 | F93: 149.2559319 | G93: 230.406548 | H93: 312.983443 | I93: 153.7069149 | J93: 233.7978157 | K93: 314.8631802 | L93: 177.6423674 | M93: 279.2355892 | N93: 380.9761094 | O93: -12.42090701 | P93: -11.53578378 | Q93: -10.56882813
B94: 18 | F94: 149.203078 | G94: 232.2817284 | H94: 316.9323721 | I94: 155.8798643 | J94: 238.0716339 | K94: 321.2088078 | L94: 177.5132555 | M94: 279.1399663 | N94: 380.9177698 | O94: -12.49263584 | P94: -11.58890761 | Q94: -10.60123901
B95: 20 | F95: 148.1857864 | G95: 232.7790741 | H95: 319.1347916 | I95: 157.6348944 | J95: 241.5633996 | K95: 326.4075191 | L95: 177.3654838 | M95: 279.0214024 | N95: 380.8344651 | O95: -12.57473123 | P95: -11.65477642 | Q95: -10.64751937
B97: Wellhead Pressure vs. Flow, BHT, and Tubing ID for BHP = 2,000 psi + Depth = 8,500 ft
B98: MMscf/d | C98: pwh_multi
C99: 200 - 1.61 | D99: 300 - 1.61 | E99: 400 - 1.61 | F99: 200 - 2.441 | G99: 300 - 2.441 | H99: 400 - 2.441 | I99: 200 - 3.958 | J99: 300 - 3.958 | K99: 400 - 3.958
B100: 1 | C100: 1651.738368 | D100: 1686.463817 | E100: 1711.242969 | F100: 1672.102793 | G100: 1709.878806 | H100: 1737.533292 | I100: 1676.272406 | J100: 1711.532771 | K100: 1739.326354
B101: 2 | C101: 1582.8534 | D101: 1607.327265 | E101: 1621.195896 | F101: 1671.821447 | G101: 1711.409604 | H101: 1739.706076 | I101: 1680.774749 | J101: 1721.63391 | K101: 1751.248173
B102: 3 | C102: 1445.830741 | D102: 1443.497006 | E102: 1430.192455 | F102: 1662.556097 | G102: 1701.458725 | H102: 1728.322728 | I102: 1684.858347 | J102: 1727.50379 | K102: 1758.04032
B103: 4 | C103: 1218.801794 | D103: 1160.665318 | E103: 1087.556232 | F103: 1645.086636 | G103: 1681.177465 | H103: 1704.792669 | I103: 1686.845525 | J103: 1730.480524 | K103: 1761.381023
B104: 5 | C104: 833.8378969 | D104: 617.1490491 | E104: 228.5358598 | F104: 1619.773627 | G104: 1651.093417 | H104: 1669.723345 | I104: 1687.32808 | J104: 1731.436494 | K104: 1762.352256
B105: 6 | F105: 1586.623956 | G105: 1611.202545 | H105: 1623.028548 | I105: 1686.652293 | J105: 1730.874332 | K105: 1761.564016
B106: 7 | F106: 1545.378416 | G106: 1545.364388 | H106: 1564.08179 | I106: 1685.02294 | J106: 1729.086336 | K106: 1759.363514
B107: 8 | F107: 1495.545594 | G107: 1500.000607 | H107: 1491.720647 | I107: 1682.565433 | J107: 1726.248812 | K107: 1755.95606
B108: 9 | F108: 1436.372335 | G108: 1426.686635 | H108: 1404.102827 | I108: 1679.359328 | J108: 1722.471905 | K108: 1751.467521
B109: 10 | F109: 1366.771783 | G109: 1339.321024 | H109: 1298.353361 | I109: 1675.45642 | J109: 1717.826332 | K109: 1745.977145
B110: 12 | F110: 1189.252671 | G110: 1109.458861 | H110: 1010.001891 | I110: 1665.685751 | J110: 1706.09748 | K110: 1732.174023
B111: 14 | F111: 937.1260413 | G111: 751.8010941 | H111: 483.6720852 | I111: 1653.409665 | J111: 1691.267051 | K111: 1714.760247
B112: 16 | F112: 514.1952928 | I112: 1638.687507 | J112: 1673.405819 | K112: 1693.793843
B113: 18 | I113: 1621.524692 | J113: 1652.509741 | K113: 1669.245117
B114: 20 | I114: 1601.891397 | J114: 1628.524843 | K114: 1641.021866
B116: MMscf/d | C116: Twh - Wellhead temperature (°F) | L116: TA - Adiabatic Wellhead temperature (°F) | O116: Delta_Tad
C117: 200 - 1.61 | D117: 300 - 1.61 | E117: 400 - 1.61 | F117: 200 - 2.441 | G117: 300 - 2.441 | H117: 400 - 2.441 | I117: 200 - 3.958 | J117: 300 - 3.958 | K117: 400 - 3.958 | L117: 200 - Adiabatic | M117: 300 - Adiabatic | N117: 400 - Adiabatic | O117: 200 - 3.958 | P117: 300 - 3.958 | Q117: 400 - 3.958
B118: 1 | C118: 74.52651673 | D118: 87.69555721 | E118: 100.5036143 | F118: 74.68324104 | G118: 87.88472419 | H118: 100.7243634 | I118: 77.23416164 | J118: 86.08820946 | K118: 98.12118392 | L118: =200+O118*9/5 -> 174.53125 | M118: =300+P118*9/5 -> 276.4415469 | N118: =400+Q118*9/5 -> 377.8570512 | O118: -14.14930555 | P118: -13.08802951 | Q118: -12.30163822
B119: 2 | C119: 87.75679334 | D119: 112.7527466 | E119: 137.7003386 | F119: 88.9169949 | G119: 114.0657745 | H119: 139.1503774 | I119: 87.26612123 | J119: 110.9216168 | K119: 134.4408618 | L119: =200+O119*9/5 -> 174.6415867 | M119: =300+P119*9/5 -> 276.7420335 | N119: =400+Q119*9/5 -> 378.3162529 | O119: -14.0880074 | P119: -12.92109249 | Q119: -12.04652617
B120: 3 | C120: 96.96254936 | D120: 132.2214945 | E120: 168.0773189 | F120: 100.6935205 | G120: 136.2890262 | H120: 172.4111149 | I120: 98.88702814 | J120: 132.5925014 | K120: 166.7048666 | L120: 174.7703163 | M120: 277.0177006 | N120: 378.7430553 | O120: -14.01649096 | P120: -12.7679441 | Q120: -11.8094137
B121: 4 | C121: 100.8444076 | D121: 144.2804377 | E121: 188.8795032 | F121: 109.8634914 | G121: 154.0320009 | H121: 199.2080216 | I121: 108.3226372 | J121: 150.4355423 | K121: 193.4319295 | L121: 174.8601822 | M121: 277.2344909 | N121: 379.0808055 | O121: -13.96656543 | P121: -12.64750506 | Q121: -11.62177472
B122: 5 | C122: 96.26974428 | D122: 143.6559167 | E122: 185.1635042 | F122: 116.8645976 | G122: 167.9566343 | H122: 220.3684038 | I122: 115.9058898 | J122: 164.8994148 | K122: 215.0996107 | L122: 174.9107308 | M122: 277.3901638 | N122: 379.3297441 | O122: -13.93848287 | P122: -12.5610201 | Q122: -11.4834755
B123: 6 | F123: 122.1505426 | G123: 178.8660096 | H123: 237.0824904 | I123: 122.0404997 | J123: 176.666481 | K123: 232.6910169 | L123: 174.9256039 | M123: 277.4924398 | N123: 379.5053027 | O123: -13.93022007 | P123: -12.50420013 | Q123: -11.38594293
B124: 7 | F124: 126.0656002 | G124: 187.4089285 | H124: 250.3486361 | I124: 127.0602914 | J124: 186.3373748 | K124: 247.1115267 | L124: 174.9087672 | M124: 277.5498401 | N124: 379.6225728 | O124: -13.93957379 | P124: -12.47231105 | Q124: -11.32079289
B125: 8 | F125: 128.847001 | G125: 194.05556 | H125: 260.9038997 | I125: 131.217334 | J125: 194.3791975 | K125: 259.0750729 | L125: 174.8635155 | M125: 277.5693786 | N125: 379.6932402 | O125: -13.96471359 | P125: -12.46145632 | Q125: -11.28153321
B126: 9 | F126: 130.6459672 | G126: 199.1277105 | H126: 269.2632359 | I126: 134.698122 | J126: 201.1431248 | K126: 269.1195162 | L126: 174.7923688 | M126: 277.5563732 | N126: 379.7257963 | O126: -14.00423953 | P126: -12.46868153 | Q126: -11.26344651
B127: 10 | F127: 131.5437235 | G127: 202.826805 | H127: 275.762787 | I127: 137.6408859 | J127: 206.8919247 | K127: 277.6469012 | L127: 174.6971873 | M127: 277.5147455 | N127: 379.7263203 | O127: -14.05711815 | P127: -12.49180806 | Q127: -11.26315541
B128: 12 | F128: 130.6362397 | G128: 206.3612752 | H128: 283.7014505 | I128: 142.3012893 | J128: 216.0884459 | K128: 291.2854563 | L128: 174.4396924 | M128: 277.3562859 | N128: 379.6474465 | O128: -14.20017089 | P128: -12.57984114 | Q128: -11.30697419
B129: 14 | F129: 125.2002515 | G129: 203.3614024 | H129: 281.8514252 | I129: 145.7653445 | J129: 223.0573386 | K129: 301.644709 | L129: 174.0975155 | M129: 277.1086082 | N129: 379.4786683 | O129: -14.39026916 | P129: -12.71743987 | Q129: -11.40073984
B130: 16 | F130: 109.3693341 | I130: 148.3746091 | J130: 228.4577081 | K130: 309.7198331 | L130: 173.6731309 | M130: 276.7789025 | N130: 379.2311494 | O130: -14.62603841 | P130: -12.90060974 | Q130: -11.53825035
B131: 18 | I131: 150.3447285 | J131: 232.7073321 | K131: 316.1384387 | L131: 173.1663632 | M131: 276.3698648 | N131: 378.9098836 | O131: -14.90757598 | P131: -13.12785291 | Q131: -11.71673131
B132: 20 | I132: 151.8171041 | J132: 236.0816102 | K132: 321.3128521 | L132: 172.5750512 | M132: 275.8811287 | N132: 378.5159118 | O132: -15.23608268 | P132: -13.39937297 | Q132: -11.93560456
B134: INJECTION Wellhead Pressure vs. Flow, BHT, and Tubing ID for BHP = 2,000 psi + Depth = 8,500 ft
B135: MMscf/d | C135: pwh_multi
C136: 200 - 1.61 | D136: 300 - 1.61 | E136: 400 - 1.61 | F136: 200 - 2.441 | G136: 300 - 2.441 | H136: 400 - 2.441 | I136: 200 - 3.958 | J136: 300 - 3.958 | K136: 400 - 3.958
B137: 1 | C137: 2317.247063 | D137: 2254.054706 | E137: 2211.04932 | F137: 2340.242569 | G137: 2281.423089 | H137: 2242.400458 | I137: 2341.882544 | J137: 2282.604018 | K137: 2243.712682
B138: 2 | C138: 2230.696522 | D138: 2150.966561 | E138: 2092.287159 | F138: 2328.296342 | G138: 2267.970109 | H138: 2227.348333 | I138: 2341.82921 | J138: 2283.484551 | K138: 2244.801423
B139: 3 | C139: 2078.431347 | D139: 1965.173903 | E139: 1874.098213 | F139: 2310.079279 | G139: 2246.449947 | H139: 2202.871475 | I139: 2338.883555 | J139: 2280.438867 | K139: 2241.535354
B140: 4 | C140: 1845.735059 | D140: 1671.39222 | E140: 1516.337433 | F140: 2285.921132 | G140: 2217.551286 | H140: 2169.66771 | I140: 2335.408107 | J140: 2276.541251 | K140: 2237.272306
B141: 5 | C141: 1498.772471 | D141: 1198.314076 | E141: 872.7740619 | F141: 2255.328377 | G141: 2180.68468 | H141: 2127.006442 | I141: 2331.713118 | J141: 2272.281668 | K141: 2232.555202
B142: 6 | C142: 943.9260836 | F142: 2217.828795 | G142: 2135.214132 | H142: 2074.063061 | I142: 2327.775685 | J142: 2267.678322 | K142: 2227.405623
B143: 7 | F143: 2172.962299 | G143: 2080.468769 | H143: 2009.888821 | I143: 2323.531832 | J143: 2262.673532 | K143: 2221.76168
B144: 8 | F144: 2120.211729 | G144: 2015.608312 | H144: 1933.297845 | I144: 2318.925551 | J144: 2257.20867 | K144: 2215.559833
B145: 9 | F145: 2058.960824 | G145: 1939.620908 | H145: 1842.723624 | I145: 2313.911953 | J145: 2251.235908 | K145: 2208.747979
B146: 10 | F146: 1988.445235 | G146: 1851.157218 | H146: 1736.005498 | I146: 2308.458452 | J146: 2244.717708 | K146: 2201.28487
B147: 12 | F147: 1815.442497 | G147: 1628.774063 | H147: 1459.999166 | I147: 2296.135168 | J147: 2229.931559 | K147: 2184.27807
B148: 14 | F148: 1589.020905 | G148: 1321.66686 | H148: 1048.911955 | I148: 2281.80271 | J148: 2212.668781 | K148: 2164.333904
B149: 16 | F149: 1285.503953 | G149: 857.8536517 | I149: 2265.354261 | J149: 2192.791807 | K149: 2141.281418
B150: 18 | F150: 852.6584537 | I150: 2246.701266 | J150: 2170.1808 | K150: 2114.972381
B151: 20 | I151: 2225.762402 | J151: 2144.719428 | K151: 2085.252114
B153: MMscf/d | C153: Twh - Wellhead temperature (°F) | L153: TA - Adiabatic Wellhead temperature (°F) | O153: Delta_Tad
C154: 200 - 1.61 | D154: 300 - 1.61 | E154: 400 - 1.61 | F154: 200 - 2.441 | G154: 300 - 2.441 | H154: 400 - 2.441 | I154: 200 - 3.958 | J154: 300 - 3.958 | K154: 400 - 3.958 | L154: 200 - Adiabatic | M154: 300 - Adiabatic | N154: 400 - Adiabatic | O154: 200 - 3.958 | P154: 300 - 3.958 | Q154: 400 - 3.958
B155: 1 | C155: 165.7570539 | D155: 234.8143328 | E155: 304.1790962 | F155: 165.9822158 | G155: 235.0212987 | H155: 304.3640989 | I155: 169.0213376 | J155: 243.5224853 | K155: 317.1170362 | L155: =200+O155*9/5 -> 223.9992069 | M155: =300+P155*9/5 -> 321.3588565 | N155: =400+Q155*9/5 -> 419.2900006 | O155: 13.33289273 | P155: 11.86603137 | Q155: 10.71666701
B156: 2 | C156: 174.6934848 | D156: 246.5655199 | E156: 320.0153394 | F156: 176.1353404 | G156: 247.9599495 | H156: 321.3027579 | I156: 166.9417432 | J156: 235.7339742 | K156: 305.1232674 | L156: =200+O156*9/5 -> 224.0113452 | M156: =300+P156*9/5 -> 321.4454063 | N156: =400+Q156*9/5 -> 419.4142633 | O156: 13.33963623 | P156: 11.91411463 | Q156: 10.78570181
B157: 3 | C157: 181.2632115 | D157: 257.7568707 | E157: 336.2445904 | F157: 185.2667149 | G157: 261.6764155 | H157: 339.890324 | I157: 173.0476401 | J157: 243.5013606 | K157: 315.2766375 | L157: 223.9082556 | M157: 321.3223539 | N157: 419.2783099 | O157: 13.2823642 | P157: 11.84575219 | Q157: 10.71017219
B158: 4 | C158: 182.8935652 | D158: 262.7500787 | E158: 344.8448642 | F158: 191.4506377 | G158: 271.3644118 | H158: 353.1258596 | I158: 179.2642407 | J158: 252.4768202 | K158: 327.328465 | L158: 223.7913755 | M158: 321.1746605 | N158: 419.1150118 | O158: 13.21743085 | P158: 11.76370027 | Q158: 10.61945102
B159: 5 | C159: 178.5259238 | D159: 259.0791949 | E159: 340.2309947 | F159: 195.6037084 | G159: 278.1145214 | H159: 362.4508482 | I159: 184.4672881 | J159: 260.2720347 | K159: 337.8484589 | L159: 223.6757853 | M159: 321.032876 | N159: 418.9627574 | O159: 13.15321407 | P159: 11.68493114 | Q159: 10.53486524
B160: 6 | C160: 158.2154431 | F160: 198.3835286 | G160: 282.8678233 | H160: 369.1441178 | I160: 188.6861535 | J160: 266.7084167 | K160: 346.5466176 | L160: 223.5616258 | M160: 320.8989065 | N160: 418.823576 | O160: 13.08979213 | P160: 11.6105036 | Q160: 10.45754224
B161: 7 | F161: 200.1806307 | G161: 286.2105514 | H161: 374.0056835 | I161: 192.110794 | J161: 271.9933796 | K161: 353.692684 | L161: 223.4466359 | M161: 320.7697526 | N161: 418.6935707 | O161: 13.02590882 | P161: 11.53875147 | Q161: 10.38531705
B162: 8 | F162: 201.2245259 | G162: 288.4962259 | H162: 377.5208512 | I162: 194.9163283 | J162: 276.3611391 | K162: 359.6019782 | L162: 223.3285766 | M162: 320.6421648 | N162: 418.568688 | O162: 12.96032034 | P162: 11.46786931 | Q162: 10.31593775
B163: 9 | F163: 201.6479632 | G163: 289.9354218 | H163: 379.9803708 | I163: 197.239295 | J163: 280.0056882 | K163: 364.5374904 | L163: 223.2055875 | M163: 320.5134676 | N163: 418.4456687 | O163: 12.89199306 | P163: 11.3963709 | Q163: 10.24759375
B164: 10 | F164: 201.5204932 | G164: 290.6427516 | H164: 381.5444939 | I164: 199.1817271 | J164: 283.0767731 | K164: 368.7025915 | L164: 223.0762503 | M164: 320.3815822 | N164: 418.3220268 | O164: 12.82013906 | P164: 11.3231012 | Q164: 10.17890377
B165: 12 | F165: 199.6564102 | G165: 289.9440393 | H165: 382.078004 | I165: 202.2110072 | J165: 287.9262707 | K165: 375.3024543 | L165: 222.7942802 | M165: 320.1021567 | N165: 418.0657314 | O165: 12.663489 | P165: 11.16786484 | Q165: 10.03651745
B166: 14 | F166: 195.2103772 | G166: 285.5387455 | H166: 377.1985768 | I166: 204.4168887 | J166: 291.5335482 | K166: 380.2483636 | L166: 222.4759812 | M166: 319.7945974 | N166: 417.7891054 | O166: 12.48665625 | P166: 10.99699855 | Q166: 9.882836337
B167: 16 | F167: 186.1794236 | G167: 270.6646169 | I167: 206.0433913 | J167: 294.2724637 | K167: 384.0469234 | L167: 222.1166601 | M167: 319.4525715 | N167: 417.4849731 | O167: 12.28703337 | P167: 10.80698417 | Q167: 9.713873947
B168: 18 | F168: 162.5709283 | I168: 207.2418814 | J168: 296.3769244 | K168: 387.0148184 | L168: 221.7125115 | M168: 319.0711835 | N168: 417.1480072 | O168: 12.06250638 | P168: 10.59510195 | Q168: 9.52667064 | T168: °F | U168: °C | W168: in | X168: m
B169: 20 | I169: 208.1102202 | J169: 297.9991906 | K169: 389.3580944 | L169: 221.2600857 | M169: 318.6461457 | N169: 416.7735697 | O169: 11.81115872 | P169: 10.35896981 | Q169: 9.318649852 | T169: 200 | U169: =CONVERT(T169,"F","C") -> 93.33333333 | W169: 1.61 | X169: =CONVERT(W169,"in","m") -> 0.040894
T170: 300 | U170: =CONVERT(T170,"F","C") -> 148.8888889 | W170: 2.441 | X170: =CONVERT(W170,"in","m") -> 0.0620014
B171: PRODCUTION - INSULATED (10%) Wellhead Pressure vs. Flow, BHT, and Tubing ID for BHP = 2,000 psi + Depth = 8,500 ft | P171: MPa | T171: 400 | U171: 204.4444444 | W171: 3.958 | X171: =CONVERT(W171,"in","m") -> 0.1005332
B172: MMscf/d | C172: pwh_multi | D172: (psi) | N172: scmd | O172: °C - m
C173: 200 - 1.61 | D173: 300 - 1.61 | E173: 400 - 1.61 | F173: 200 - 2.441 | G173: 300 - 2.441 | H173: 400 - 2.441 | I173: 200 - 3.958 | J173: 300 - 3.958 | K173: 400 - 3.958 | O173: 93 - 0.041 | P173: 149 - 0.041 | Q173: 204 - 0.041 | R173: 93 - 0.062 | S173: 149 - 0.062 | T173: 204 - 0.062 | U173: 93 - 0.101 | V173: 149 - 0.101 | W173: 204 - 0.101
B174: 1 | C174: 1675.694976 | D174: 1716.316733 | E174: 1743.329991 | F174: 1698.305825 | G174: 1743.171178 | H174: 1774.11946 | I174: 1700.327513 | J174: 1745.457364 | K174: 1776.72445 | N174: =B174*28317 -> 28317 | O174: =CONVERT(C174, "psi", "Pa")/1000000 -> 11.55351015 | P174: =CONVERT(D174, "psi", "Pa")/1000000 -> 11.83358731 | Q174: =CONVERT(E174, "psi", "Pa")/1000000 -> 12.01983717 | R174: =CONVERT(F174, "psi", "Pa")/1000000 -> 11.70940647 | S174: =CONVERT(G174, "psi", "Pa")/1000000 -> 12.01874219 | T174: =CONVERT(H174, "psi", "Pa")/1000000 -> 12.23212309 | U174: =CONVERT(I174, "psi", "Pa")/1000000 -> 11.72334552 | V174: =CONVERT(J174, "psi", "Pa")/1000000 -> 12.03450489 | W174: =CONVERT(K174, "psi", "Pa")/1000000 -> 12.25008386
B175: 2 | C175: 1595.804129 | D175: 1620.345054 | E175: 1631.422185 | F175: 1693.126283 | G175: 1737.688537 | H175: 1767.679351 | I175: 1703.560363 | J175: 1750.113002 | K175: 1782.003872 | N175: =B175*28317 -> 56634 | O175: =CONVERT(C175, "psi", "Pa")/1000000 -> 11.00268216 | P175: 11.17188588 | Q175: 11.24826001 | R175: 11.67369479 | S175: 11.98094071 | T175: 12.1877201 | U175: 11.74563524 | V175: 12.06660438 | W175: 12.28648419
B176: 3 | C176: 1445.309871 | D176: 1434.61775 | E176: 1410.701801 | F176: 1679.153818 | G176: 1721.071086 | H176: 1748.305599 | I176: 1703.917534 | J176: 1750.800884 | K176: 1782.705912 | N176: 84951 | O176: 9.965060775 | P176: 9.891341194 | Q176: 9.726446533 | R176: 11.57735803 | S176: 11.86636742 | T176: 12.05414278 | U176: 11.74809784 | V176: 12.07134716 | W176: 12.29132459
B177: 4 | C177: 1202.954732 | D177: 1121.838698 | E177: 1020.396274 | F177: 1657.801444 | G177: 1695.321932 | H177: 1718.265053 | I177: 1703.048804 | J177: 1749.880598 | K177: 1781.578336 | N177: 113268 | O177: 8.294080914 | P177: 7.734805542 | Q177: 7.035384649 | R177: 11.4301386 | S177: 11.68883325 | T177: 11.8470205 | U177: 11.74210816 | V177: 12.06500201 | W177: 12.28355023
B178: 5 | C178: 805.1574134 | D178: 528.9124628 | F178: 1629.201045 | G178: 1660.593076 | H178: 1677.632291 | I178: 1701.355118 | J178: 1747.912114 | K178: 1779.25419 | N178: 141585 | O178: 5.551364948 | P178: 3.64672306 | R178: 11.23294579 | S178: 11.44938622 | T178: 11.56686747 | U178: 11.73043061 | V178: 12.0514298 | W178: 12.2675258
B179: 6 | F179: 1593.134086 | G179: 1616.538175 | H179: 1625.866414 | I179: 1698.979974 | J179: 1745.093287 | K179: 1775.953361 | N179: 169902 | R179: 10.98427286 | S179: 11.14563837 | T179: 11.20995432 | U179: 11.71405457 | V179: 12.03199467 | W179: 12.24476739
B180: 7 | F180: 1549.195205 | G180: 1562.503309 | H180: 1562.001944 | I180: 1695.986233 | J180: 1741.509917 | K180: 1771.769757 | N180: 198219 | R180: 10.68132494 | S180: 10.77308108 | T180: 10.76962429 | U180: 11.69341345 | V180: 12.0072882 | W180: 12.21592245
B181: 8 | F181: 1496.788567 | G181: 1497.517702 | H181: 1484.588631 | I181: 1692.405147 | J181: 1737.20355 | K181: 1766.747898 | N181: 226536 | R181: 10.31999389 | S181: 10.3250211 | T181: 10.23587829 | U181: 11.66872273 | V181: 11.97759685 | W181: 12.18129795
B182: 9 | F182: 1435.095117 | G182: 1420.196567 | H182: 1391.485837 | I182: 1688.251337 | J182: 1732.195128 | K182: 1760.909357 | N182: 254853 | R182: 9.894632523 | S182: 9.791910636 | T182: 9.593957126 | U182: 11.64008322 | V182: 11.94306499 | W182: 12.14104263
B183: 10 | F183: 1362.995857 | G183: 1328.545631 | H183: 1279.44119 | I183: 1683.533302 | J183: 1726.49472 | K183: 1754.263547 | N183: 283170 | R183: 9.397525628 | S183: 9.159999677 | T183: 8.821436477 | U183: 11.60755351 | V183: 11.90376206 | W183: 12.09522138
B184: 12 | F184: 1180.71744 | G184: 1088.636031 | H184: 973.3926769 | I184: 1672.41516 | J184: 1713.028592 | K184: 1738.554171 | N184: 339804 | R184: 8.140760178 | S184: 7.505881217 | T184: 6.711306258 | U184: 11.53089662 | V184: 11.81091638 | W184: 11.98690905
B185: 14 | F185: 926.7907088 | G185: 720.7260793 | H185: 422.0691559 | I185: 1659.043748 | J185: 1696.792025 | K185: 1719.58767 | N185: 396438 | R185: 6.389996998 | S185: 4.969231391 | T185: 2.910064391 | U185: 11.43870398 | V185: 11.69896919 | W185: 11.85613963
B186: 16 | F186: 550.6654739 | I186: 1643.388389 | J186: 1677.733777 | K186: 1697.285556 | N186: 453072 | R186: 3.796704793 | U186: 11.33076408 | V186: 11.5675672 | W186: 11.70237197
B187: 18 | I187: 1625.399091 | J187: 1655.775608 | K187: 1671.53399 | N187: 509706 | U187: 11.20673223 | V187: 11.41617095 | W187: 11.52482117
B188: 20 | I188: 1605.010416 | J188: 1630.81512 | K188: 1642.185359 | N188: 566340 | U188: 11.06615727 | V188: 11.24407444 | W188: 11.32246948
B190: MMscf/d | C190: Twh - Wellhead temperature (°F) | L190: TA - Adiabatic Wellhead temperature (°F) | O190: Delta_Tad
C191: 200 - 1.61 | D191: 300 - 1.61 | E191: 400 - 1.61 | F191: 200 - 2.441 | G191: 300 - 2.441 | H191: 400 - 2.441 | I191: 200 - 3.958 | J191: 300 - 3.958 | K191: 400 - 3.958 | L191: 200 - Adiabatic | M191: 300 - Adiabatic | N191: 400 - Adiabatic | O191: 200 - 3.958 | P191: 300 - 3.958 | Q191: 400 - 3.958
B192: 1 | C192: 136.9968864 | D192: 208.0257848 | E192: 280.633048 | F192: 137.5244469 | G192: 208.5156511 | H192: 281.0759109 | I192: 135.5524947 | J192: 204.8200143 | K192: 275.6933385 | L192: =200+O192*9/5 -> 175.3948835 | M192: =300+P192*9/5 -> 278.1303311 | N192: =400+Q192*9/5 -> 380.2550914 | O192: -13.66950915 | P192: -12.14981605 | Q192: -10.96939367
B193: 2 | C193: 151.4083979 | D193: 236.7960174 | E193: 323.1425641 | F193: 153.989315 | G193: 239.1085666 | H193: 325.1578917 | I193: 152.9405227 | J193: 236.9158429 | K193: 321.8914266 | L193: =200+O193*9/5 -> 175.6533996 | M193: =300+P193*9/5 -> 278.5603515 | N193: =400+Q193*9/5 -> 380.7809668 | O193: -13.5258891 | P193: -11.91091581 | Q193: -10.67724067
B194: 3 | C194: 153.4143923 | D194: 244.821456 | E194: 336.8036639 | F194: 160.1775131 | G194: 250.8831014 | H194: 342.0999799 | I194: 159.8782463 | J194: 249.6930461 | K194: 340.0824044 | L194: 175.7306346 | M194: 278.7027669 | N194: 380.9555133 | O194: -13.48298078 | P194: -11.83179619 | Q194: -10.58027038
B195: 4 | C195: 148.2093839 | D195: 242.8960713 | E195: 337.8706723 | F195: 163.0885828 | G195: 256.8166119 | H195: 350.7942956 | I195: 163.5736804 | J195: 256.5076129 | K195: 349.7447239 | L195: 175.7415282 | M195: 278.7514877 | N195: 381.0239015 | O195: -13.4769288 | P195: -11.80472904 | Q195: -10.54227692
B196: 5 | C196: 128.4858172 | D196: 212.5350026 | F196: 164.4504009 | G196: 260.1125307 | H196: 355.8491255 | I196: 165.8453864 | J196: 260.7204808 | K196: 355.7147202 | L196: 175.715079 | M196: 278.7530578 | N196: 381.0420054 | O196: -13.49162275 | P196: -11.80385679 | Q196: -10.5322192
B197: 6 | F197: 164.8783928 | G197: 261.9224464 | H197: 358.9167248 | I197: 167.3624332 | J197: 263.5643936 | K197: 359.7533468 | L197: 175.6618451 | M197: 278.7240551 | N197: 381.0292702 | O197: -13.52119716 | P197: -11.8199694 | Q197: -10.53929432
B198: 7 | F198: 164.6301594 | G198: 262.7441253 | H198: 360.7172257 | I198: 168.4281757 | J198: 265.5971232 | K198: 362.6536149 | L198: 175.586517 | M198: 278.6717852 | N198: 380.9941611 | O198: -13.56304611 | P198: -11.84900821 | Q198: -10.55879938
B199: 8 | F199: 163.8112267 | G199: 262.804723 | H199: 361.5899659 | I199: 169.1998469 | J199: 267.1072556 | K199: 364.8250015 | L199: 175.4914458 | M199: 278.5999034 | N199: 380.9408974 | O199: -13.61586345 | P199: -11.88894258 | Q199: -10.58839033
B200: 9 | F200: 162.4429451 | G200: 262.1886111 | H200: 361.6770515 | I200: 169.76726 | J200: 268.2592938 | K200: 366.4998902 | L200: 175.3778377 | M200: 278.5103873 | N200: 380.8717614 | O200: -13.67897907 | P200: -11.93867373 | Q200: -10.62679925
B201: 10 | F201: 160.4813519 | G201: 260.8753378 | H201: 360.9763032 | I201: 170.1850946 | J201: 269.1536422 | K201: 367.82021 | L201: 175.246365 | M201: 278.4043422 | N201: 380.7880461 | O201: -13.75201945 | P201: -11.99758769 | Q201: -10.67330772
B202: 12 | F202: 154.1897437 | G202: 255.3809503 | H202: 356.100487 | I202: 170.7015967 | J202: 270.4069936 | K202: 369.7326362 | L202: 174.9308985 | M202: 278.1447921 | N202: 380.5794665 | O202: -13.92727863 | P202: -12.14178215 | Q202: -10.78918526
B203: 14 | F203: 141.7393424 | G203: 239.6582698 | H203: 326.1722874 | I203: 170.9167935 | J203: 271.1752467 | K203: 370.9970173 | L203: 174.5453088 | M203: 277.8230018 | N203: 380.3175603 | O203: -14.14149509 | P203: -12.32055456 | Q203: -10.93468872
B204: 16 | F204: 103.0562268 | I204: 170.9142834 | J204: 271.6136308 | K204: 371.8325434 | L204: 174.0880355 | M204: 277.4381545 | N204: 380.0019256 | O204: -14.39553584 | P204: -12.53435862 | Q204: -11.11004133
B205: 18 | I205: 170.7391286 | J205: 271.8072897 | K205: 372.3604738 | L205: 173.5561901 | M205: 276.9878265 | N205: 379.6304551 | O205: -14.69100552 | P205: -12.78454085 | Q205: -11.31641386
B206: 20 | I206: 170.4163817 | J206: 271.8055802 | K206: 372.651838 | L206: 172.9457542 | M206: 276.4682742 | N206: 379.1996492 | O206: -15.03013653 | P206: -13.07318102 | Q206: -11.55575042
